Workbook

Sheet Read Me

Sheet Control
G3: Time Series of Global Supply and Demand | N3: Time Series of Price, Marginal Cost, and | V3: Supply and Demand Schedules
G4: for Good #2 | N4: Marginal Values for Good #2 in Economy 1 | V4: for Good #2 in Economy 1
A26: SIMLEN: | B26: 300
A27: DT: | B27: 0.01 | BC27: *
A28: PER: | B28: =B26/30 -> 10
A29: TIME: | B29: 300.0014954
G47: Time Series of Interest Rates | N47: Time Series of Household Utility | V47: Time Series of Trade Balances, with
G48: and Currency Values | N48: and Leisure | V48: Domestic Financial Balances

Sheet Econ 0
G5: < Absolute Commodity Values > | T5: < Export / Import Resolution >
S7: S
G8: 2 | H8: ='Econ 2'!AG14 -> -1657255.422 | I8: ='Econ 2'!AH14 -> 1274.924627 | J8: ='Econ 2'!AI14 -> 10531.43283 | K8: ='Econ 2'!AJ14 -> 55308.77673 | L8: 2 | M8: __ | R8: 2 | S8: ='Econ 2'!T45+'Econ 2'!T14 -> -102686.6765 | T8: ='Econ 2'!U45+'Econ 2'!U14 -> 100.3478138 | U8: ='Econ 2'!V45+'Econ 2'!V14 -> 742.2507634 | V8: ='Econ 2'!W45+'Econ 2'!Y22+'Econ 2'!W14 -> 2002.714911 | W8: 2
G9: 1 | H9: ='Econ 1'!AG14 -> -1657255.422 | I9: ='Econ 1'!AH14 -> 1274.924627 | J9: ='Econ 1'!AI14 -> 10531.43283 | K9: ='Econ 1'!AJ14 -> 55308.77673 | L9: 1 | M9: U | R9: 1 | S9: ='Econ 1'!T45+'Econ 1'!T14 -> -106490.9757 | T9: ='Econ 1'!U45+'Econ 1'!U14 -> 100.3478138 | U9: ='Econ 1'!V45+'Econ 1'!V14 -> 825.7545529 | V9: ='Econ 1'!W45+'Econ 1'!Y22+'Econ 1'!W14 -> 1940.491864 | W9: 1 | X9: Global
G10: 0 | H10: =H9+H8 -> -3314510.844 | I10: =I9+I8 -> 2549.849253 | J10: =J9+J8 -> 21062.86567 | K10: =K9+K8 -> 110617.5535 | L10: 0 | R10: 0 | S10: =-2*GPE!E10 -> -209177.6522 | T10: =T9+T8 -> 200.6956275 | U10: =U9+U8 -> 1568.005316 | V10: =V9+V8 -> 3943.206776 | W10: 0 | X10: Supply
H11: 0 | I11: 1 | J11: 2 | K11: L | S11: 0 | T11: 1 | U11: 2 | V11: L
S12: D
G13: 2 | H13: ='Econ 2'!T41 -> -1759942.099 | I13: ='Econ 2'!U41 -> 597975.6592 | J13: ='Econ 2'!V41 -> 597975.6592 | K13: ='Econ 2'!W41 -> 563990.7803 | L13: 2 | M13: __ | R13: 2 | S13: ='Econ 2'!T70 -> -102686.6765 | T13: ='Econ 2'!U70 -> 98.86144351 | U13: ='Econ 2'!V70 -> 771.7731346 | V13: ='Econ 2'!W70 -> 1909.900761 | W13: 2
G14: 1 | H14: ='Econ 1'!T41 -> -1763746.398 | I14: ='Econ 1'!U41 -> 599269.6209 | J14: ='Econ 1'!V41 -> 599269.6209 | K14: ='Econ 1'!W41 -> 565207.1562 | L14: 1 | M14: Q | R14: 1 | S14: ='Econ 1'!T70 -> -106490.9757 | T14: ='Econ 1'!U70 -> 101.834184 | U14: ='Econ 1'!V70 -> 796.2321817 | V14: ='Econ 1'!W70 -> 2033.306015 | W14: 1 | X14: Global
G15: 0 | H15: =H14+H13 -> -3523688.497 | I15: =I14+I13 -> 1197245.28 | J15: =J14+J13 -> 1197245.28 | K15: =K14+K13 -> 1129197.936 | L15: 0 | R15: 0 | S15: =S14+S13 -> -209177.6522 | T15: =T14+T13 -> 200.6956275 | U15: =U14+U13 -> 1568.005316 | V15: =V14+V13 -> 3943.206776 | W15: 0 | X15: Demand
H16: 0 | I16: 1 | J16: 2 | K16: L | S16: 0 | T16: 1 | U16: 2 | V16: L
H18: =1 -> 1 | I18: =GPE!F18/GPE!$E18 -> 441.9334589 | J18: =GPE!G18/GPE!$E18 -> 53.8606403 | K18: =GPE!H18/GPE!$E18 -> 10
F19: Values | G19: Y | H19: =H15/(H10+S10) -> 1 | I19: =I15/(I10+T10) -> 435.2756752 | J19: =J15/(J10+U10) -> 52.90319055 | K19: =K15/(K10+V10) -> 9.856760152 | M19: Y | R19: S | S19: 1 | T19: =IF(T21>1,1/T21,1) -> 1 | U19: =IF(U21>1,1/U21,1) -> 1 | V19: =IF(V21>1,1/V21,1) -> 1 | W19: S | X19: Global
F20: G/unit | H20: 0 | I20: 1 | J20: 2 | K20: L | R20: D | S20: =S21 -> 1 | T20: =IF(T21<1,T21,1) -> 1 | U20: =IF(U21<1,U21,1) -> 1 | V20: =IF(V21<1,V21,1) -> 1 | W20: D | X20: Factors
S21: =S10/S15 -> 1 | T21: =T10/T15 -> 1 | U21: =U10/U15 -> 1 | V21: =V10/V15 -> 1 | W21: S / D
S22: 0 | T22: 1 | U22: 2 | V22: L
R25: 2 | S25: =S$19*S8 -> -102686.6765 | T25: 100.3478138 | U25: 742.2507634 | V25: 2002.714911 | W25: 2 | X25: Global
R26: 1 | S26: -106490.9757 | T26: 100.3478138 | U26: 825.7545529 | V26: 1940.491864 | W26: 1 | X26: Supply
R27: 0 | S27: =S26+S25 -> -209177.6522 | T27: =T26+T25 -> 200.6956275 | U27: =U26+U25 -> 1568.005316 | V27: =V26+V25 -> 3943.206776 | W27: 0 | X27: Used
S28: 0 | T28: 1 | U28: 2 | V28: L
R30: 2 | S30: =S$20*S13 -> -102686.6765 | T30: 98.86144351 | U30: 771.7731346 | V30: 1909.900761 | W30: 2 | X30: Global
R31: 1 | S31: -106490.9757 | T31: 101.834184 | U31: 796.2321817 | V31: 2033.306015 | W31: 1 | X31: Demand
R32: 0 | S32: =S31+S30 -> -209177.6522 | T32: =T31+T30 -> 200.6956275 | U32: =U31+U30 -> 1568.005316 | V32: =V31+V30 -> 3943.206776 | W32: 0 | X32: Met
S33: 0 | T33: 1 | U33: 2 | V33: L
O36: F | S36: X
N37: 2 | O37: ='Econ 2'!R33-'Econ 2'!R53 -> -4.032626748e-07 | P37: 2 | Q37: =-S37 -> 4.00996214e-09 | R37: 2 | S37: =-I$19*T37-J$19*U37-K$19*V37 -> -4.00996214e-09 | T37: =T25-T30 -> 1.48637025 | U37: -29.52237124 | V37: 92.81415019 | W37: 2 | X37: Physical
N38: 1 | O38: ='Econ 1'!R33-'Econ 1'!R53 -> 5.480833352e-07 | P38: 1 | Q38: =-S38 -> -4.013600119e-09 | R38: 1 | S38: =-I$19*T38-J$19*U38-K$19*V38 -> 4.013600119e-09 | T38: -1.48637025 | U38: 29.52237124 | V38: -92.81415019 | W38: 1 | X38: Export / Import
N39: 0 | O39: =O38+O37 -> 1.448206604e-07 | P39: 0 | Q39: =Q38+Q37 -> -3.637978807e-12 | R39: 0 | S39: =S38+S37 -> 3.637978807e-12 | T39: =T38+T37 -> 0 | U39: =U38+U37 -> -1.136868377e-13 | V39: =V38+V37 -> 2.273736754e-13 | W39: 0 | X39: Profile
S40: 0 | T40: 1 | U40: 2 | V40: L

Sheet Econ 1
AH4: =-SUM(AH6:AH9) -> -2069.208993 | AI4: =-SUM(AI6:AI9) -> -16331.43283 | AJ4: =-SUM(AJ6:AJ9) -> -53793.52207
F5: < Temporal Parameters, i.e.: Turnover Fractions > | S5: H | T5: 0 | U5: 1 | V5: 2 | W5: L | AF5: U | AG5: 0 | AH5: 1 | AI5: 2 | AJ5: L | AK5: t | AL5: Z | AN5: Z
S6: 0 | U6: 1 | V6: 1 | W6: 0 | X6: 0 | AF6: 0 | AH6: 794.2843664 | AI6: 5800 | AJ6: 8766 | AK6: 0 | AL6: =Y19+AL19 -> -637635.6674 | AN6: =Utility!E28 -> -643139.1648 | AO6: 0
R7: =1-T7 -> 4 | S7: 1 | T7: =-SUM(U7:W7) -> -3 | U7: =SIGN(AH7) -> 1 | V7: 1 | W7: 1 | X7: 1 | Y7: =1/(1-T7) -> 0.25 | AE7: Spatial Parameters, | AF7: 1 | AH7: 644.2843664 | AI7: 5546.692237 | AJ7: 29682.74915 | AK7: 1 | AL7: =AH6 -> 794.2843664 | AN7: =Utility!M14 -> 794.2843664 | AO7: 1
E8: i | G8: n | I8: V0 | R8: =1-T8 -> 4 | S8: 2 | T8: =-SUM(U8:W8) -> -3 | U8: 1 | V8: 1 | W8: 1 | X8: 2 | Y8: =1/(1-T8) -> 0.25 | AE8: i.e.: production and | AF8: 2 | AH8: 572.4895161 | AI8: 4693.503722 | AJ8: 25626.02758 | AK8: 2 | AL8: =AI6 -> 5800 | AN8: =Utility!M30 -> 5693.503722 | AO8: 2
E9: =-E60 -> -0.1046848452 | G9: =(1-1/NPV_1)/Term1 -> -0.153483518 | I9: =IState!G13 -> 1 | J9: =IState!H13 -> 0.1 | K9: =IState!I13 -> 0.3333333333 | L9: =IState!J13 -> 1 | N9: < V | R9: =W9-T9 -> 1 | S9: L | T9: =-SUM(U9:V9) -> -2 | U9: 1 | V9: 1 | W9: =SIGN(AJ9) -> -1 | X9: L | Y9: =1/(1-T9) -> 0.3333333333 | AE9: utility tradeoffs > | AF9: L | AH9: 58.15074408 | AI9: 291.2368745 | AJ9: =Zl_1 -> -10281.25466 | AK9: L | AL9: =L9*L49 -> -10281.25466 | AM9: ZL | AN9: =Utility!M45 -> -10219.74286 | AO9: L
E10: =IState!C$13 -> -0.1 | G10: =IState!E13 -> -0.1355310143 | I10: 0 | J10: 1 | K10: 2 | L10: L | R10: h | T10: -N | Y10: 1/(N + 1)
C13: Contra- | E13: k | G13: g | AF13: __
C14: Accounts > | E14: =-E17-SUM(E19:E23) -> -169992.8494 | G14: =-G17-SUM(G19:G23) -> 115945.1866 | I14: =-I17-SUM(I19:I22) -> -2.532452212e-10 | J14: =-J17-SUM(J19:J22) -> -9.032774528e-12 | K14: =-K17-SUM(K19:K22) -> 0 | L14: =-L17-SUM(L19:L22) -> -1.550404249e-11 | N14: < Markets | R14: =Iota1*E14+Nu_1*G14 -> 0 | T14: =V0_1*I14 -> -2.532452212e-10 | U14: =J9*J14 -> -9.032774528e-13 | V14: =K9*K14 -> 0 | W14: =L9*L14 -> -1.550404249e-11 | Y14: < Market Pressure | AE14: =-AE53 -> 4932857.337 | AF14: U | AG14: =SUM(T56:T58) -> -1657255.422 | AH14: =SUM(AH7:AH9) -> 1274.924627 | AI14: =SUM(AI7:AI9) -> 10531.43283 | AJ14: =SUM(AJ7:AJ8) -> 55308.77673
I15: 0 | J15: 1 | K15: 2 | L15: L | T15: 0 | U15: 1 | V15: 2 | W15: L | AG15: 0 | AH15: 1 | AI15: 2 | AJ15: L
E17: =E25 -> 0 | G17: =G25+G33+G41 -> 0 | I17: =I25+I33+I41 -> 4.436920849e-09 | J17: =J25+J33+J41 -> -14.8637025 | K17: =K25+K33+K41 -> 88.56711372 | L17: =L25+L33+L41 -> -92.81415019 | R17: =-SUM(R19:R22) -> 0 | T17: =I$9*I17 -> 4.436920849e-09 | U17: =J$9*J17 -> -1.48637025 | V17: =K$9*K17 -> 29.52237124 | W17: =L$9*L17 -> -92.81415019 | AE17: =AE53+R17 -> -4932857.337 | AG17: =T17+T53 -> 2294891.09 | AH17: =AH4+U17 -> -2070.695363 | AI17: =AI4+V17 -> -16301.91046 | AJ17: =AJ4+W17 -> -53886.33622
I18: 0 | J18: 1 | K18: 2 | L18: L | R18: e | S18: E | T18: 0 | U18: 1 | V18: 2 | W18: L | Y18: Y | AE18: u + e | AF18: m | AG18: 0 | AH18: 1 | AI18: 2 | AJ18: L | AL18: l | AN18: (u + e)/h
D19: 0 | E19: =E27 -> 0 | F19: 0 | G19: =G27+G35+G43 -> 0 | H19: 0 | I19: =I27+I35+I43 -> 106490.9757 | J19: -1003.478138 | K19: -2477.263659 | L19: -8766 | M19: 0 | R19: =Iota1*E19+Nu_1*G19 -> 0 | S19: 0 | T19: =I$9*I19 -> 106490.9757 | U19: -100.3478138 | V19: -825.7545529 | W19: -8766 | X19: 0 | Y19: =T45 -> -106490.9757 | AA19: =-GPE!E10 -> -104588.8261 | AE19: =AE55+R19 -> 0 | AF19: 0 | AG19: =AL19 -> -531144.6916 | AH19: =AL20 -> 693.9365527 | AI19: =AL21 -> 4974.245447 | AJ19: =AJ6+W19 -> 0 | AK19: 0 | AL19: =-U49*AL20-V49*AL21-W49*AL22 -> -531144.6916 | AO19: 0
C20: Monetary > | D20: 1 | E20: =E28 -> 81569.97569 | F20: 1 | H20: 1 | I20: -39706.33646 | J20: 496.5218624 | K20: 488.5897252 | L20: 961.5697571 | M20: 1 | N20: < Physical | Q20: Dividends > | R20: =Iota1*E20+Nu_1*G20 -> -8539.140275 | S20: 1 | T20: -39706.33646 | U20: 49.65218624 | V20: 162.8632417 | W20: 961.5697571 | X20: 1 | Y20: =AL7-AL20 -> 100.3478138 | Z20: < Production | AE20: =AE56+R20 -> 2597051.902 | AF20: 1 | AG20: =T20+T56 -> -906161.1045 | AH20: =AH7+U20 -> 693.9365527 | AI20: 5709.555479 | AJ20: =AJ7+W20 -> 30644.31891 | AK20: 1 | AL20: =AL7*Y28 -> 693.9365527 | AN20: =AE20/R7 -> 649262.9756 | AO20: 1
C21: Stocks | D21: 2 | E21: =E29 -> 88422.87376 | F21: 2 | H21: 2 | I21: -39378.67428 | J21: 320.7781844 | K21: 842.2251746 | L21: 1071.736258 | M21: 2 | N21: Stocks | R21: =Iota1*E21+Nu_1*G21 -> -9256.534848 | S21: 2 | T21: -39378.67428 | U21: 32.07781844 | V21: 280.7417249 | W21: 1071.736258 | X21: 2 | Y21: =AL8-AL21 -> 825.7545529 | AC21: U + E | AD21: > | AE21: =AE57+R21 -> 2262588.331 | AF21: 2 | AG21: =T21+T57 -> -789460.3642 | AH21: 604.5673346 | AI21: 4974.245447 | AJ21: =AJ8+W21 -> 26697.76384 | AK21: 2 | AL21: =AL8*Y29 -> 4974.245447 | AN21: =AE21/R8 -> 565647.0827 | AO21: 2
D22: L | F22: L | G22: =G30+G38+G46 -> -115945.1866 | H22: L | I22: -27405.96499 | J22: 201.0417933 | K22: 1057.881645 | L22: 6825.508136 | M22: L | R22: =Iota1*E22+Nu_1*G22 -> 17795.67512 | S22: L | T22: -27405.96499 | U22: 20.10417933 | V22: 352.6272151 | W22: 6825.508136 | X22: L | Y22: =AL9-AL22 -> -6825.508136 | Z22: < | AA22: YL = - Leisure | AE22: =AE58+R22 -> 73217.10354 | AF22: L | AG22: =T22+T58 -> -68124.92924 | AH22: 78.25492341 | AI22: 643.8640896 | AJ22: =AL22 -> -3455.746523 | AK22: L | AL22: =AL9*Y30 -> -3455.746523 | AN22: =AE22/R9 -> 73217.10354 | AO22: L
E23: Investment | G23: Saving | Y23: =Utility!M41 -> -6766
E25: 0 | G25: 0 | I25: 1.464180428e-09 | J25: -4.9545675 | K25: 29.52237124 | L25: -30.93805006 | U25: - Y/l
H26: A | I26: 0 | J26: 1 | K26: 2 | L26: L | R26: w | S26: W | T26: 0 | U26: 1 | V26: 2 | W26: L | Y26: l/Z | AE26: b = e/w | AG26: Q = E0/W0 | AL26: z = pl | AN26: q = P0Q
D27: 0 | E27: 0 | F27: 0 | G27: 0 | H27: 0 | I27: 35496.99191 | J27: -334.4927125 | K27: -825.7545529 | L27: -2922 | M27: 0 | S27: 0 | T27: =-Y19/AL19 -> -0.2004933447 | U27: =-Y20/AH19 -> -0.1446066119 | V27: =-Y21/AI19 -> -0.1660059926 | X27: 0 | Y27: =AL19/AL6 -> 0.8329908736 | AF27: 0 | AK27: 0 | AO27: 0
D28: 1 | E28: 81569.97569 | F28: 1 | H28: 1 | I28: -13235.44549 | J28: 165.5072875 | K28: 162.8632417 | L28: 320.5232524 | M28: 1 | P28: E | Q28: > | R28: =U27-T28 -> -0.01315205178 | S28: 1 | T28: =-SUM(U28:W28) -> -0.1314545601 | U28: =U20/AH20 -> 0.07155147837 | V28: 0.02852467978 | W28: 0.03137840198 | X28: 1 | Y28: =(1-U28)*(1-V28)*(1-W28) -> 0.87366261 | AE28: =R20/R28 -> 649262.9756 | AF28: 1 | AG28: =T20/T28 -> 302053.7015 | AK28: 1 | AL28: =AL44*AL20 -> 649262.9756 | AN28: =P0_1*AG28 -> 649262.9756 | AO28: 1
D29: 2 | E29: 88422.87376 | F29: 2 | H29: 2 | I29: -13126.22476 | J29: 106.9260615 | K29: 280.7417249 | L29: 357.2454192 | M29: 2 | P29: U + E | R29: =V27-T29 -> -0.01636450559 | S29: 2 | T29: =-SUM(U29:W29) -> -0.149641487 | U29: 0.05305913271 | V29: 0.05643905751 | W29: 0.0401432968 | X29: 2 | Y29: =(1-U29)*(1-V29)*(1-W29) -> 0.8576285254 | AE29: =R21/R29 -> 565647.0827 | AF29: 2 | AG29: =T21/T29 -> 263153.4547 | AK29: 2 | AL29: =AL45*AL21 -> 565647.0827 | AN29: =P0_1*AG29 -> 565647.0827 | AO29: 2
D30: L | F30: L | G30: -38648.39552 | H30: L | I30: -9135.321663 | J30: 67.01393111 | K30: 352.6272151 | L30: 2275.169379 | M30: L | R30: =W30-T30 -> 0.2430535252 | S30: L | T30: =-SUM(U30:V30) -> -0.8045796243 | U30: =U22/AH22 -> 0.2569062553 | V30: =V22/AI22 -> 0.547673369 | W30: =(AJ6+Y22)/AJ22 -> -0.5615260991 | X30: L | Y30: =(1-U30)*(1-V30) -> 0.3361210901 | AE30: =R22/R30 -> 73217.10354 | AF30: L | AG30: =T22/T30 -> 34062.46462 | AK30: L | AL30: =AL46*AL22 -> 73217.10354 | AN30: =P0_1*AG30 -> 73217.10354 | AO30: L
W31: (t+Y) /l
G33: 0 | I33: 1.474820237e-09 | J33: -4.9545675 | K33: 29.52237124 | L33: -30.93805006 | R33: =R35-T33 -> -2294891.09 | T33: =-SUM(U33:W33) -> 2294891.09 | U33: =-SUM(U35:U38) -> -901323.3223 | V33: =-SUM(V35:V38) -> -862423.0756 | W33: =-SUM(W35:W38) -> -531144.6916 | AE33: =AE35-AG33 -> -4932857.337 | AG33: =-SUM(AH33:AJ33) -> 4932857.337 | AH33: =-SUM(AH35:AH38) -> -1937390.137 | AI33: =-SUM(AI35:AI38) -> -1853774.245 | AJ33: =-SUM(AJ35:AJ38) -> -1141692.955
H34: B | I34: 0 | J34: 1 | K34: 2 | L34: L | R34: hQ | S34: HQ | T34: 0 | U34: 1 | V34: 2 | W34: L | AE34: hb | AF34: Hb | AG34: 0 | AH34: 1 | AI34: 2 | AJ34: L | AN34: (PU + s)/N
F35: 0 | G35: 0 | H35: 0 | I35: 35496.99191 | J35: -334.4927125 | K35: -825.7545529 | L35: -2922 | M35: 0 | R35: =T35-T35 -> 0 | S35: 0 | T35: =-T33-SUM(T36:T38) -> -531144.6916 | U35: =U6*AG28 -> 302053.7015 | V35: =V6*AG29 -> 263153.4547 | W35: =W6*AG30 -> 0 | X35: 0 | AE35: =AG35-AG35 -> 0 | AF35: 0 | AG35: =-AG33-SUM(AG36:AG38) -> -1141692.955 | AH35: =U6*AE28 -> 649262.9756 | AI35: =V6*AE29 -> 565647.0827 | AJ35: =W6*AE30 -> 0 | AK35: 0 | AO35: 0
F36: 1 | H36: 1 | I36: -13235.44549 | J36: 165.5072875 | K36: 162.8632417 | L36: 320.5232524 | M36: 1 | R36: =R7*$AG28 -> 1208214.806 | S36: 1 | T36: =T7*$AG28 -> -906161.1045 | U36: 302053.7015 | V36: 302053.7015 | W36: 302053.7015 | X36: 1 | AE36: =R7*$AE28 -> 2597051.902 | AF36: 1 | AG36: =T7*$AE28 -> -1947788.927 | AH36: 649262.9756 | AI36: 649262.9756 | AJ36: 649262.9756 | AK36: 1 | AN36: =(AG56+AG84)/T7 -> 649262.9756 | AO36: 1
C37: System State | F37: 2 | H37: 2 | I37: -13126.22476 | J37: 106.9260615 | K37: 280.7417249 | L37: 357.2454192 | M37: 2 | R37: =R8*$AG29 -> 1052613.819 | S37: 2 | T37: -789460.3642 | U37: 263153.4547 | V37: 263153.4547 | W37: 263153.4547 | X37: 2 | AE37: =R8*$AE29 -> 2262588.331 | AF37: 2 | AG37: -1696941.248 | AH37: 565647.0827 | AI37: 565647.0827 | AJ37: 565647.0827 | AK37: 2 | AN37: =(AG57+AG85)/T8 -> 565647.0827 | AO37: 2
C38: at time = t > | F38: L | G38: -38648.39552 | H38: L | I38: -9135.321663 | J38: 67.01393111 | K38: 352.6272151 | L38: 2275.169379 | M38: L | R38: =R9*$AG30 -> 34062.46462 | S38: L | T38: -68124.92924 | U38: 34062.46462 | V38: 34062.46462 | W38: -34062.46462 | X38: L | AE38: =R9*$AE30 -> 73217.10354 | AF38: L | AG38: -146434.2071 | AH38: 73217.10354 | AI38: 73217.10354 | AJ38: -73217.10354 | AK38: L | AN38: =(AG58+AG86)/T9 -> 73217.10354 | AO38: L
S40: __ | AD40: Intersection of
G41: 0 | I41: 1.497920184e-09 | J41: -4.9545675 | K41: 29.52237124 | L41: -30.93805006 | R41: =SUM(R36:R38) -> 2294891.09 | S41: Q | T41: =SUM(T36:T38) -> -1763746.398 | U41: =SUM(U36:U38) -> 599269.6209 | V41: =SUM(V36:V38) -> 599269.6209 | W41: =SUM(W36:W37) -> 565207.1562 | AD41: S/D Schedules > | AE41: =AE33/AE17 -> 1 | AG41: =AG33/AG17 -> 2.14949518 | AH41: =AH33/AH17 -> 935.6229659 | AI41: =AI33/AI17 -> 113.7151531 | AJ41: =AJ33/AJ17 -> 21.18705844 | AO41: 1/(N+1)
H42: C | I42: 0 | J42: 1 | K42: 2 | L42: L | T42: 0 | U42: 1 | V42: 2 | W42: L | AF42: c Hb/m | AG42: 0 | AH42: 1 | AI42: 2 | AJ42: L | AL42: p | AN42: (pZPU)
F43: 0 | G43: 0 | H43: 0 | I43: 35496.99191 | J43: -334.4927125 | K43: -825.7545529 | L43: -2922 | M43: 0 | AD43: Marginal Costs of Production > | AE43: 1 | AF43: 0 | AG43: =AG35/AG19 -> 2.14949518 | AH43: 935.6229659 | AI43: 113.7151531 | AK43: 0 | AO43: 0
F44: 1 | H44: 1 | I44: -13235.44549 | J44: 165.5072875 | K44: 162.8632417 | L44: 320.5232524 | M44: 1 | T44: =-GPE!E10 -> -104588.8261 | U44: =-GPE!F10 -> 100 | V44: =-GPE!G10 -> 750 | W44: =-GPE!H10 -> 8766 | AE44: =AE36/AE20 -> 1 | AF44: 1 | AG44: 2.14949518 | AH44: 935.6229659 | AI44: 113.7151531 | AJ44: =AJ36/AJ20 -> 21.18705844 | AK44: 1 | AL44: =AH49 -> 935.6229659 | AN44: =(AL44*AL7*AL56)^Y7 -> 649262.9756 | AO44: 1
F45: 2 | H45: 2 | I45: -13126.22476 | J45: 106.9260615 | K45: 280.7417249 | L45: 357.2454192 | M45: 2 | R45: =-R83 -> 0 | S45: Yt | T45: =-T83 -> -106490.9757 | U45: =Y20 -> 100.3478138 | V45: =Y21 -> 825.7545529 | W45: =AJ6 -> 8766 | Y45: < Output | AD45: Values of > | AE45: =AE37/AE21 -> 1 | AF45: 2 | AG45: 2.14949518 | AH45: 935.6229659 | AI45: 113.7151531 | AJ45: =AJ37/AJ21 -> 21.18705844 | AK45: 2 | AL45: =AI49 -> 113.7151531 | AN45: =(AL45*AL8*AL57)^Y8 -> 565647.0827 | AO45: 2
F46: L | G46: -38648.39552 | H46: L | I46: -9135.321663 | J46: 67.01393111 | K46: 352.6272151 | L46: 2275.169379 | M46: L | T46: 0 | U46: 1 | V46: 2 | W46: L | AD46: Marginal Product | AE46: =AE38/AE22 -> 1 | AF46: L | AG46: 2.14949518 | AH46: 935.6229659 | AI46: 113.7151531 | AJ46: =AJ38/AJ22 -> 21.18705844 | AK46: L | AL46: =-AJ49 -> -21.18705844 | AN46: =(AL46*AL9*AL58)^Y9 -> 73217.10354 | AO46: L
R48: =GPE!C18/GPE!$E18 -> 0.05 | T48: =GPE!E18/GPE!$E18 -> 1 | U48: =GPE!F18/GPE!$E18 -> 441.9334589 | V48: =GPE!G18/GPE!$E18 -> 53.8606403 | W48: =GPE!H18/GPE!$E18 -> 10 | AE48: 1 | AG48: =GPE!E18 -> 2 | AH48: =GPE!F18 -> 883.8669178 | AI48: =GPE!G18 -> 107.7212806 | AJ48: =GPE!H18 -> 20
G49: =3*G41/Term1 -> 0 | L49: -10281.25466 | Q49: Currency > | R49: =R33/AE33 -> 0.4652255139 | S49: Y | T49: ='Econ 0'!H19 -> 1 | U49: ='Econ 0'!I19 -> 435.2756752 | V49: ='Econ 0'!J19 -> 52.90319055 | W49: ='Econ 0'!K19 -> 9.856760152 | Y49: < Values | AD49: Prices > | AE49: =P0_1*R49 -> 1 | AF49: P | AG49: =AG33/(T53+T17) -> 2.14949518 | AH49: =P0_1*U49 -> 935.6229659 | AI49: =P0_1*V49 -> 113.7151531 | AJ49: =P0_1*W49 -> 21.18705844 | AL49: Z
P50: Value | R50: G/$ | T50: 0 | U50: 1 | V50: 2 | W50: L | Y50: G/unit | AC50: $/unit | AE50: $/$ | AG50: 0 | AH50: 1 | AI50: 2 | AJ50: L
F51: 0 | G51: =3*G43/Term1 -> 0 | H51: 0
F52: 1 | H52: 1
E53: Maturing | F53: 2 | H53: 2 | R53: =R55-T53 -> -2294891.09 | T53: =-SUM(U53:W53) -> 2294891.09 | U53: =U$49*AH4 -> -900676.3415 | V53: =V$49*AI4 -> -863984.9032 | W53: =W$49*AJ4 -> -530229.8448 | AE53: =AE55-AG53 -> -4932857.337 | AG53: =-SUM(AH53:AJ53) -> 4932857.337 | AH53: =AH$49*AH4 -> -1935999.455 | AI53: =AI$49*AI4 -> -1857131.385 | AJ53: =AJ$49*AJ4 -> -1139726.496
E54: Principal > | F54: L | G54: =3*G46/Term1 -> -14231.34198 | H54: L | R54: ¡ | S54: YU | T54: 0 | U54: 1 | V54: 2 | W54: L | AE54: u | AF54: PU | AG54: 0 | AH54: 1 | AI54: 2 | AJ54: L | AL54: PU
R55: =T55-T55 -> 0 | S55: 0 | T55: =-T53-SUM(T56:T58) -> -637635.6674 | U55: =U$49*AH6 -> 345732.6639 | V55: 306838.5052 | W55: 86404.35949 | X55: 0 | AE55: =AG55-AG55 -> 0 | AF55: 0 | AG55: =-AG53-SUM(AG56:AG58) -> -1370594.794 | AH55: =AH$49*AH6 -> 743150.6947 | AI55: 659547.8881 | AJ55: 185725.7543 | AK55: 0
R56: =U55-T56 -> 1212187.432 | S56: 1 | T56: =-SUM(U56:W56) -> -866454.768 | U56: 280441.3126 | V56: 293437.7164 | W56: 292575.739 | X56: 1 | Y56: Interaction | AD56: Interaction | AE56: =AH55-AG56 -> 2605591.043 | AF56: 1 | AG56: =-SUM(AH56:AJ56) -> -1862440.348 | AH56: 602807.2498 | AI56: 630742.9571 | AJ56: 628890.1409 | AK56: 1 | AL56: =AH56*AI56*AJ56 -> 2.391143626e+17
R57: =V55-T57 -> 1056920.195 | S57: 2 | T57: =-SUM(U57:W57) -> -750081.69 | U57: 249190.7607 | V57: 248301.3218 | W57: 252589.6075 | X57: 2 | Y57: < of Utility | AD57: of Utility > | AE57: =AI55-AG57 -> 2271844.866 | AF57: 2 | AG57: =-SUM(AH57:AJ57) -> -1612296.978 | AH57: 535634.3391 | AI57: 533722.4945 | AJ57: 542940.144 | AK57: 2 | AL57: =AH57*AI57*AJ57 -> 1.552157802e+17
R58: =W55+W58-T58 -> 25783.46252 | S58: L | T58: =-SUM(U58:V58) -> -40718.96426 | U58: 25311.60439 | V58: 15407.35987 | W58: -101339.8612 | X58: L | Y58: with Values | AD58: with Prices | AE58: =AJ55+AJ58-AG58 -> 55421.42842 | AF58: L | AG58: =-SUM(AH58:AI58) -> -87525.21742 | AH58: 54407.17164 | AI58: 33118.04578 | AJ58: -217829.5433 | AK58: L | AL58: =AH58*AI58 -> 1801859201
E59: - i | G59: Domestic
E60: =-I63/I60-V0_2 -> 0.1046848452 | F60: < | G60: Interest | I60: =-I20-I21 -> 79085.01075 | J60: < Asset Valuations, a | AG60: - PU
E61: -0.1 | G61: Rate | I61: 0
R62: =AE62/AE$49-AE53 -> -1.655891538e-06 | T62: =AG62/AG$49-T53 -> 2.183951437e-07 | U62: =AH62/AH$49-AH4 -> -1.48637025 | V62: =AI62/AI$49-AI4 -> 29.52237124 | W62: =AJ62/AJ$49-AJ4 -> -92.8141502 | AE62: =AE64-AG62 -> -4932857.337 | AG62: =-SUM(AH62:AJ62) -> 4932857.337 | AH62: =-SUM(AH64:AH67) -> -1937390.137 | AI62: =-SUM(AI64:AI67) -> -1853774.245 | AJ62: =-SUM(AJ64:AJ67) -> -1141692.955
E63: Supply Valuations, YS | H63: > | I63: =-SUM(J63:K63) -> -87364.01285 | J63: =U49*U73 -> 43678.96239 | K63: =V49*V73 -> 43685.05046 | R63: -f | S63: Q | T63: 0 | U63: 1 | V63: 2 | W63: L | AE63: hz | AF63: Hz | AG63: 0 | AH63: 1 | AI63: 2 | AJ63: L
I64: 0 | J64: 1 | K64: 2 | R64: =AE64/AE$49-AE55 -> 0 | S64: 0 | T64: =AG64/AG$49-T55 -> 106490.9757 | U64: =AH64/AH$49-AH6 -> -100.3478138 | V64: -825.7545529 | W64: -8766 | X64: 0 | AE64: =AG64-AG64 -> 0 | AF64: 0 | AG64: =-AG62-SUM(AG65:AG67) -> -1141692.955 | AH64: =U6*$AL28 -> 649262.9756 | AI64: =V6*$AL29 -> 565647.0827 | AJ64: =W6*$AL30 -> 0 | AK64: 0
R65: =AE65/AE$49-AE56 -> -8539.140274 | S65: 1 | T65: =AG65/AG$49-T56 -> -39706.33646 | U65: 49.65218624 | V65: 162.8632417 | W65: 961.5697571 | X65: 1 | Y65: Optimal | AE65: =R7*$AL28 -> 2597051.902 | AF65: 1 | AG65: =T7*$AL28 -> -1947788.927 | AH65: 649262.9756 | AI65: 649262.9756 | AJ65: 649262.9756 | AK65: 1
I66: NPV | J66: 1 | R66: =AE66/AE$49-AE57 -> -9256.534847 | S66: 2 | T66: =AG66/AG$49-T57 -> -39378.67428 | U66: 32.07781844 | V66: 280.7417249 | W66: 1071.736258 | X66: 2 | Y66: < Rates of | AE66: =R8*$AL29 -> 2262588.331 | AF66: 2 | AG66: -1696941.248 | AH66: 565647.0827 | AI66: 565647.0827 | AJ66: 565647.0827 | AK66: 2
E67: Investment | G67: =LN(1+E60)*(1+E60)^Term1-E60*Kappa1/Gamma1 -> 0.3775391686 | I67: =1/(1-E60*Term1*Kappa1/Gamma1) -> 0.4443542754 | J67: 1+iTk/g | R67: =AE67/AE$49-AE58 -> 17795.67512 | S67: L | T67: =AG67/AG$49-T58 -> -27405.96499 | U67: 20.10417933 | V67: 352.6272151 | W67: 6825.508136 | X67: L | Y67: Change | AE67: =R9*$AL30 -> 73217.10354 | AF67: L | AG67: -146434.2071 | AH67: 73217.10354 | AI67: 73217.10354 | AJ67: -73217.10354 | AK67: L
E68: Term | I68: 0.5131581182
E69: Calculation | G69: =Term1-(1/I69-1/NPV_1)/G67 -> 8.147171696 | I69: =1/(1+E60)^Term1 -> 0.4443542754 | J69: 1 | Y69: Domestic
I70: NPV | J70: (1 - i)T | R70: =SUM(R65:R67) -> 1.657303073e-06 | S70: D | T70: =SUM(T65:T67) -> -106490.9757 | U70: =SUM(U65:U67) -> 101.834184 | V70: =SUM(V65:V67) -> 796.2321817 | W70: =SUM(W65:W66) -> 2033.306015 | Y70: < Demand
T71: 0 | U71: 1 | V71: 2 | W71: L
Y72: Domestic
R73: =R45+R14 -> 0 | S73: S | T73: =T45+T14 -> -106490.9757 | U73: =U45+U14 -> 100.3478138 | V73: =V45+V14 -> 825.7545529 | W73: =W45+Y22+W14 -> 1940.491864 | Y73: < Supply | AE73: 0 | AG73: =-SUM(AH73:AJ73) -> 0
T74: 0 | U74: 1 | V74: 2 | W74: L | AF74: FI | AG74: 0 | AH74: 1 | AI74: 2 | AJ74: L
E75: Domestic | G75: T | AE75: 0 | AF75: 0 | AG75: =-SUM(AH75:AJ75) -> 0 | AH75: 0 | AI75: 0 | AJ75: 0 | AK75: 0
E76: Investment | F76: > | G76: 8.147171696 | Y76: Demand | AD76: Equity | AE76: =-AG76 -> -5.399817023e-09 | AF76: 1 | AG76: =-SUM(AH76:AJ76) -> 5.399817023e-09 | AH76: 0 | AI76: =(AE45-AE44)*(V0_1-Iota1)*(E20+E21) -> -5.399817023e-09 | AK76: 1
E77: Term | G77: =ITerm -> 7 | S77: F | T77: ='Econ 0'!S20 -> 1 | U77: ='Econ 0'!T20 -> 1 | V77: ='Econ 0'!U20 -> 1 | W77: ='Econ 0'!V20 -> 1 | Y77: < Factors | AD77: Markets > | AE77: =-AG77 -> 5.399817023e-09 | AF77: 2 | AG77: =-SUM(AH77:AJ77) -> -5.399817023e-09 | AH77: =-AI76 -> 5.399817023e-09 | AI77: 0 | AK77: 2
T78: 0 | U78: 1 | V78: 2 | W78: L | AE78: 0 | AF78: L | AG78: =-SUM(AH78:AJ78) -> 0 | AK78: L
AM79: Monetary
Y80: imports ( - ) | AD80: Trade | AM80: < Transactions
E81: 0 | G81: 0 | I81: =I25+DT*(T81-I$9*I25*3) -> 1.460391017e-09 | J81: =J25+DT*(U81-J$9*J25*3) -> -4.9545675 | K81: =K25+DT*(V81-K$9*K25*3) -> 29.52237124 | L81: =L25+DT*(W81-L$9*L25*3) -> -30.93805006 | R81: =AE73+AE81 -> -8.627214112e-09 | T81: ='Econ 0'!S38 -> 4.013600119e-09 | U81: ='Econ 0'!T38 -> -1.48637025 | V81: ='Econ 0'!U38 -> 29.52237124 | W81: ='Econ 0'!V38 -> -92.81415019 | Y81: < eXports ( + ) | AD81: Balance > | AE81: =AE83-AG81 -> -8.627214112e-09 | AG81: =AG$49*T81 -> 8.627214112e-09 | AH81: =AH$49*U81 -> -1390.682142 | AI81: =AI$49*V81 -> 3357.140966 | AJ81: =AJ$49*W81 -> -1966.458824
H82: A | I82: 0 | J82: 1 | K82: 2 | L82: L | R82: r | S82: R | T82: 0 | U82: 1 | V82: 2 | W82: L | AE82: - NCF | AF82: PR | AG82: 0 | AH82: 1 | AI82: 2 | AJ82: L
D83: 0 | E83: 0 | F83: 0 | G83: 0 | H83: 0 | I83: =I27+DT*(T83-I$9*I27*3) -> 35496.99191 | J83: -334.4927125 | K83: -825.7545529 | L83: -2922 | M83: 0 | Q83: Debt | R83: =AE75+AE83 -> 0 | S83: 0 | T83: =-T81-SUM(T84:T86) -> 106490.9757 | U83: =-U45 -> -100.3478138 | V83: =-V45 -> -825.7545529 | W83: =-W45 -> -8766 | X83: 0 | Y83: < Output ( - ) | AD83: Cost of Sales | AE83: =AG83-AG83 -> 0 | AF83: 0 | AG83: =-AG81-SUM(AG84:AG86) -> 228901.8391 | AH83: =-AH81-SUM(AH84:AH86) -> -93887.71914 | AI83: =-AI81-SUM(AI84:AI86) -> -93900.80543 | AJ83: =-AJ81-SUM(AJ84:AJ86) -> -41113.31454 | AK83: 0
D84: 1 | E84: =E28+DT*(R84-Iota1*E28) -> 81569.97569 | F84: 1 | H84: 1 | I84: -13235.44549 | J84: 165.5072875 | K84: 162.8632417 | L84: 320.5232524 | M84: 1 | Q84: Service > | R84: =AE76+AE84 -> -8539.140275 | S84: 1 | T84: =T$77*T65 -> -39706.33646 | U84: 49.65218624 | V84: 162.8632417 | W84: 961.5697571 | X84: 1 | AD84: Minus Sales > | AE84: =AH83-AG84 -> -8539.140275 | AF84: 1 | AG84: =-SUM(AH84:AJ84) -> -85348.57886 | AH84: =AH$49*U84 -> 46455.72575 | AI84: 18520.01847 | AJ84: 20372.83464 | AK84: 1
D85: 2 | E85: =E29+DT*(R85-Iota1*E29) -> 88422.87376 | F85: 2 | H85: 2 | I85: -13126.22476 | J85: 106.9260615 | K85: 280.7417249 | L85: 357.2454192 | M85: 2 | R85: =AE77+AE85 -> -9256.534848 | S85: 2 | T85: -39378.67428 | U85: 32.07781844 | V85: 280.7417249 | W85: 1071.736258 | X85: 2 | Y85: < Rates of | AE85: =AI83-AG85 -> -9256.534848 | AF85: 2 | AG85: =-SUM(AH85:AJ85) -> -84644.27058 | AH85: 30012.74363 | AI85: 31924.58823 | AJ85: 22706.93872 | AK85: 2
D86: L | F86: L | G86: =G30+DT*(R86-Nu_1*G22+G54-3*G30/Term1) -> -38648.39552 | H86: L | I86: -9135.321663 | J86: 67.01393111 | K86: 352.6272151 | L86: 2275.169379 | M86: L | Q86: Passive > | R86: =AE78+AE86 -> 17795.67512 | S86: L | T86: =T$77*T67 -> -27405.96499 | U86: =U$77*U67 -> 20.10417933 | V86: =V$77*V67 -> 352.6272151 | W86: =-W81-SUM(W83:W85) -> 6825.508136 | X86: L | Y86: Change | AD86: Consumption > | AE86: =AJ83-AG86 -> 17795.67512 | AF86: L | AG86: =-SUM(AH86:AJ86) -> -58908.98966 | AH86: =AH$49*U86 -> 18809.9319 | AI86: =AI$49*V86 -> 40099.05776 | AJ86: 0 | AK86: L
Q87: Income | AD87: Minus Wages
G89: =G33+DT*3*(G25-G33)/Term1 -> 0 | I89: =I33+DT*I$9*3*(I25-I33) -> 1.474501043e-09 | J89: =J33+DT*J$9*3*(J25-J33) -> -4.9545675 | K89: =K33+DT*K$9*3*(K25-K33) -> 29.52237124 | L89: =L33+DT*L$9*3*(L25-L33) -> -30.93805006 | R89: =GPE!C8 -> -0.2886111448 | T89: =GPE!E8 -> 0 | U89: =GPE!F8 -> 0 | V89: =GPE!G8 -> 0 | W89: =GPE!H8 -> 0
H90: B | I90: 0 | J90: 1 | K90: 2 | L90: L | R90: r | S90: R | T90: 0 | U90: 1 | V90: 2 | W90: L
F91: 0 | G91: =G35+DT*3*(G27-G35)/Term1 -> 0 | H91: 0 | I91: =I35+DT*I$9*3*(I27-I35) -> 35496.99191 | J91: -334.4927125 | K91: -825.7545529 | L91: -2922 | M91: 0 | R91: =GPE!C10 -> 0 | S91: 0 | T91: =GPE!E10 -> 104588.8261 | U91: =GPE!F10 -> -100 | V91: =GPE!G10 -> -750 | W91: =GPE!H10 -> -8766 | X91: 0
F92: 1 | H92: 1 | I92: -13235.44549 | J92: 165.5072875 | K92: 162.8632417 | L92: 320.5232524 | M92: 1 | R92: =GPE!C11 -> -8035.153798 | S92: 1 | T92: =GPE!E11 -> -40175.76899 | U92: =GPE!F11 -> 50 | V92: =GPE!G11 -> 150 | W92: =GPE!H11 -> 1000 | X92: 1
C93: System State | F93: 2 | H93: 2 | I93: -13126.22476 | J93: 106.9260615 | K93: 280.7417249 | L93: 357.2454192 | M93: 2 | R93: =GPE!C12 -> -7344.632768 | S93: 2 | T93: =GPE!E12 -> -36723.16384 | U93: =GPE!F12 -> 30 | V93: =GPE!G12 -> 250 | W93: =GPE!H12 -> 1000 | X93: 2
C94: at time = t + D > | F94: L | G94: =G38+DT*3*(G30-G38)/Term1 -> -38648.39552 | H94: L | I94: -9135.321663 | J94: 67.01393111 | K94: 352.6272151 | L94: 2275.169379 | M94: L | R94: =GPE!C13 -> 15379.78657 | S94: L | T94: =GPE!E13 -> -27689.89328 | U94: =GPE!F13 -> 20 | V94: =GPE!G13 -> 350 | W94: =GPE!H13 -> 6766 | X94: L
G97: =G41+DT*3*(G33-G41)/Term1 -> 0 | I97: =I41+DT*I$9*3*(I33-I41) -> 1.497227186e-09 | J97: =J41+DT*J$9*3*(J33-J41) -> -4.9545675 | K97: =K41+DT*K$9*3*(K33-K41) -> 29.52237124 | L97: =L41+DT*L$9*3*(L33-L41) -> -30.93805006 | R97: u
H98: C | I98: 0 | J98: 1 | K98: 2 | L98: L | R98: (h/w-1)
F99: 0 | G99: =G43+DT*3*(G35-G43)/Term1 -> 0 | H99: 0 | I99: =I43+DT*I$9*3*(I35-I43) -> 35496.99191 | J99: -334.4927125 | K99: -825.7545529 | L99: -2922 | M99: 0 | S99: 0
F100: 1 | H100: 1 | I100: -13235.44549 | J100: 165.5072875 | K100: 162.8632417 | L100: 320.5232524 | M100: 1 | R100: =AE56/(R7/R28-1) -> -8539.140275 | S100: 1
F101: 2 | H101: 2 | I101: -13126.22476 | J101: 106.9260615 | K101: 280.7417249 | L101: 357.2454192 | M101: 2 | R101: =AE57/(R8/R29-1) -> -9256.534848 | S101: 2
F102: L | G102: =G46+DT*3*(G38-G46)/Term1 -> -38648.39552 | H102: L | I102: -9135.321663 | J102: 67.01393111 | K102: 352.6272151 | L102: 2275.169379 | M102: L | R102: =AE58/(R9/R30-1) -> 17795.67512 | S102: L
L105: =L49+DT*R105 -> -10281.25466 | R105: =(R102-R22)/AJ49/(1-Y30) -> 7.759288195e-11 | S105: < | T105: ∂ZL/∂t
L106: =Utility!M45 -> -10219.74286

Sheet Econ 2
AH4: =-SUM(AH6:AH9) -> -2069.208993 | AI4: =-SUM(AI6:AI9) -> -16224.93656 | AJ4: =-SUM(AJ6:AJ9) -> -53863.61643
F5: < Temporal Parameters, i.e.: Turnover Fractions > | S5: H | T5: 0 | U5: 1 | V5: 2 | W5: L | AF5: U | AG5: 0 | AH5: 1 | AI5: 2 | AJ5: L | AK5: t | AL5: Z | AN5: Z
S6: 0 | U6: 1 | V6: 1 | W6: 0 | X6: 0 | AF6: 0 | AH6: 794.2843664 | AI6: 5693.503722 | AJ6: 8766 | AK6: 0 | AL6: =Y19+AL19 -> -632692.5778 | AN6: =Utility!E28 -> -643139.1648 | AO6: 0
R7: =1-T7 -> 4 | S7: 1 | T7: =-SUM(U7:W7) -> -3 | U7: =SIGN(AH7) -> 1 | V7: 1 | W7: 1 | X7: 1 | Y7: =1/(1-T7) -> 0.25 | AE7: Spatial Parameters, | AF7: 1 | AH7: 644.2843664 | AI7: 5546.692237 | AJ7: 29682.74915 | AK7: 1 | AL7: =AH6 -> 794.2843664 | AN7: =Utility!M14 -> 794.2843664 | AO7: 1
E8: i | G8: n | I8: V0 | R8: =1-T8 -> 4 | S8: 2 | T8: =-SUM(U8:W8) -> -3 | U8: 1 | V8: 1 | W8: 1 | X8: 2 | Y8: =1/(1-T8) -> 0.25 | AE8: i.e.: production and | AF8: 2 | AH8: 572.4895161 | AI8: 4693.503722 | AJ8: 25626.02758 | AK8: 2 | AL8: =AI6 -> 5693.503722 | AN8: =Utility!M30 -> 5693.503722 | AO8: 2
E9: =-E60 -> -0.09956154678 | G9: =(1-1/NPV_2)/Term2 -> -0.1192546635 | I9: =IState!G13 -> 1 | J9: =IState!H13 -> 0.1 | K9: =IState!I13 -> 0.3333333333 | L9: =IState!J13 -> 1 | N9: < V | R9: =W9-T9 -> 1 | S9: L | T9: =-SUM(U9:V9) -> -2 | U9: 1 | V9: 1 | W9: -1 | X9: L | Y9: =1/(1-T9) -> 0.3333333333 | AE9: utility tradeoffs > | AF9: L | AH9: 58.15074408 | AI9: 291.2368745 | AJ9: =Zl_2 -> -10211.1603 | AK9: L | AL9: =L9*L49 -> -10211.1603 | AM9: ZL | AN9: =Utility!M45 -> -10219.74286 | AO9: L
E10: =IState!C13 -> -0.1 | G10: =IState!E13 -> -0.1355310143 | I10: 0 | J10: 1 | K10: 2 | L10: L | R10: h | T10: -N | Y10: 1/(N + 1)
C13: Contra- | E13: k | G13: g | AF13: __
C14: Accounts > | E14: =-E17-SUM(E19:E23) -> -145301.9858 | G14: =-G17-SUM(G19:G23) -> 121307.5451 | I14: 0 | J14: 0 | K14: 0 | L14: 0 | N14: < Markets | R14: =Iota2*E14+Nu_2*G14 -> 0 | T14: =V0_1*I14 -> 0 | U14: =J9*J14 -> 0 | V14: =K9*K14 -> 0 | W14: 0 | Y14: < Market Pressure | AE14: =SUM(AE56:AE58) -> 4410818.56 | AF14: U | AG14: =SUM(T56:T58) -> -1657255.422 | AH14: =SUM(AH7:AH9) -> 1274.924627 | AI14: =SUM(AI7:AI9) -> 10531.43283 | AJ14: =SUM(AJ7:AJ8) -> 55308.77673
I15: 0 | J15: 1 | K15: 2 | L15: L | T15: 0 | U15: 1 | V15: 2 | W15: L | AG15: 0 | AH15: 1 | AI15: 2 | AJ15: L
E17: =E25 -> 0 | G17: =G25+G33+G41 -> 0 | I17: =I25+I33+I41 -> -4.312587953e-09 | J17: =J25+J33+J41 -> 14.8637025 | K17: =K25+K33+K41 -> -88.56711372 | L17: =L25+L33+L41 -> 92.81415019 | R17: =-SUM(R19:R22) -> 0 | T17: =I$9*I17 -> -4.312587953e-09 | U17: =J$9*J17 -> 1.48637025 | V17: =K$9*K17 -> -29.52237124 | W17: =L$9*L17 -> 92.81415019 | AE17: =AE53+R17 -> -4410818.56 | AG17: =T53+T17 -> 2289948 | AH17: =AH4+U17 -> -2067.722623 | AI17: =AI4+V17 -> -16254.45893 | AJ17: =AJ4+W17 -> -53770.80228
I18: 0 | J18: 1 | K18: 2 | L18: L | R18: e | S18: E | T18: 0 | U18: 1 | V18: 2 | W18: L | Y18: Y | AE18: u + e | AF18: m | AG18: 0 | AH18: 1 | AI18: 2 | AJ18: L | AL18: l | AN18: (u + e)/h
D19: 0 | E19: =E27 -> 0 | F19: 0 | G19: =G27+G35+G43 -> 0 | H19: 0 | I19: =I27+I35+I43 -> 102686.6765 | J19: -1003.478138 | K19: -2226.75229 | L19: -8766 | M19: 0 | R19: =Iota2*E19+Nu_2*G19 -> 0 | S19: 0 | T19: =I$9*I19 -> 102686.6765 | U19: -100.3478138 | V19: -742.2507634 | W19: -8766 | X19: 0 | Y19: =T45 -> -102686.6765 | AA19: =-GPE!E10 -> -104588.8261 | AE19: =AE55+R19 -> 0 | AF19: 0 | AG19: =AL19 -> -530005.9013 | AH19: =AL20 -> 693.9365527 | AI19: =AL21 -> 4951.252959 | AJ19: =AJ6+W19 -> 0 | AK19: 0 | AL19: =-U49*AL20-V49*AL21-W49*AL22 -> -530005.9013 | AO19: 0
C20: Monetary > | D20: 1 | E20: =E28 -> 76856.32423 | F20: 1 | H20: 1 | I20: -39706.33646 | J20: 496.5218624 | K20: 488.5897252 | L20: 961.5697571 | M20: 1 | N20: < Physical | R20: =Iota2*E20+Nu_2*G20 -> -7651.93452 | S20: 1 | T20: -39706.33646 | U20: 49.65218624 | V20: 162.8632417 | W20: 961.5697571 | X20: 1 | Y20: =AL7-AL20 -> 100.3478138 | Z20: < Production | AE20: =AE56+R20 -> 2327221.531 | AF20: 1 | AG20: =T56+T20 -> -906161.1045 | AH20: =AH7+U20 -> 693.9365527 | AI20: 5709.555479 | AJ20: =AJ7+W20 -> 30644.31891 | AK20: 1 | AL20: =AL7*Y28 -> 693.9365527 | AN20: =AE20/R7 -> 581805.3827 | AO20: 1
C21: Stocks | D21: 2 | E21: =E29 -> 68445.66161 | F21: 2 | H21: 2 | I21: -35729.54632 | J21: 292.8332278 | K21: 773.2477099 | L21: 948.3310039 | M21: 2 | N21: Stocks | P21: Dividends > | R21: =Iota2*E21+Nu_2*G21 -> -6814.55594 | S21: 2 | T21: -35729.54632 | U21: 29.28332278 | V21: 257.7492366 | W21: 948.3310039 | X21: 2 | Y21: =AL8-AL21 -> 742.2507634 | AC21: U + E | AD21: > | AE21: =AE57+R21 -> 2018136.531 | AF21: 2 | AG21: =T57+T21 -> -785811.2363 | AH21: 601.7728389 | AI21: 4951.252959 | AJ21: =AJ8+W21 -> 26574.35858 | AK21: 2 | AL21: =AL8*Y29 -> 4951.252959 | AN21: =AE21/R8 -> 504534.1329 | AO21: 2
D22: L | F22: L | G22: =G30+G38+G46 -> -121307.5451 | H22: L | I22: -27250.79371 | J22: 199.259345 | K22: 1053.481969 | L22: 6763.285089 | M22: L | R22: =Iota2*E22+Nu_2*G22 -> 14466.49046 | S22: L | T22: -27250.79371 | U22: 19.9259345 | V22: 351.1606563 | W22: 6763.285089 | X22: L | Y22: =AL9-AL22 -> -6763.285089 | Z22: < | AA22: YL = - Leisure | AE22: =AE58+R22 -> 65460.49734 | AF22: L | AG22: =T58+T22 -> -67969.75796 | AH22: 78.07667857 | AI22: 642.3975307 | AJ22: =AL22 -> -3447.87521 | AK22: L | AL22: =AL9*Y30 -> -3447.87521 | AN22: =AE22/R9 -> 65460.49734 | AO22: L
E23: Investment | G23: Saving | Y23: =Utility!M41 -> -6766
E25: 0 | G25: 0 | I25: -1.391724128e-09 | J25: 4.9545675 | K25: -29.52237124 | L25: 30.93805006 | U25: - Y/l
H26: A | I26: 0 | J26: 1 | K26: 2 | L26: L | R26: w | S26: W | T26: 0 | U26: 1 | V26: 2 | W26: L | Y26: l/Z | AE26: b = e/w | AG26: Q = E0/W0 | AL26: z = pl | AN26: q = P0Q
D27: 0 | E27: 0 | F27: 0 | G27: 0 | H27: 0 | I27: 34228.89216 | J27: -334.4927125 | K27: -742.2507634 | L27: -2922 | M27: 0 | S27: 0 | T27: =-Y19/AL19 -> -0.1937462889 | U27: =-Y20/AH19 -> -0.1446066119 | V27: =-Y21/AI19 -> -0.1499117031 | X27: 0 | Y27: =AL19/AL6 -> 0.8376989393 | AF27: 0 | AK27: 0 | AO27: 0
D28: 1 | E28: 76856.32423 | F28: 1 | H28: 1 | I28: -13235.44549 | J28: 165.5072875 | K28: 162.8632417 | L28: 320.5232524 | M28: 1 | P28: E | Q28: > | R28: =U27-T28 -> -0.01315205178 | S28: 1 | T28: =-SUM(U28:W28) -> -0.1314545601 | U28: =U20/AH20 -> 0.07155147837 | V28: 0.02852467978 | W28: 0.03137840198 | X28: 1 | Y28: =(1-U28)*(1-V28)*(1-W28) -> 0.87366261 | AE28: =R20/R28 -> 581805.3827 | AF28: 1 | AG28: =T20/T28 -> 302053.7015 | AK28: 1 | AL28: =(AL44*AL7*AL56)^Y7 -> 581805.3827 | AN28: =P0_2*AG28 -> 581805.3827 | AO28: 1
D29: 2 | E29: 68445.66161 | F29: 2 | H29: 2 | I29: -11909.84877 | J29: 97.61107593 | K29: 257.7492366 | L29: 316.1103346 | M29: 2 | P29: U + E | R29: =V27-T29 -> -0.01350663017 | S29: 2 | T29: =-SUM(U29:W29) -> -0.1364050729 | U29: 0.04866175554 | V29: 0.05205737593 | W29: 0.03568594143 | X29: 2 | Y29: =(1-U29)*(1-V29)*(1-W29) -> 0.8696319877 | AE29: =R21/R29 -> 504534.1329 | AF29: 2 | AG29: =T21/T29 -> 261937.0788 | AK29: 2 | AL29: =(AL45*AL8*AL57)^Y8 -> 504534.1329 | AN29: =P0_2*AG29 -> 504534.1329 | AO29: 2
D30: L | F30: L | G30: -40435.84835 | H30: L | I30: -9083.597902 | J30: 66.41978165 | K30: 351.1606563 | L30: 2254.428363 | M30: L | R30: =W30-T30 -> 0.220995731 | S30: L | T30: =-SUM(U30:V30) -> -0.8018505442 | U30: =U22/AH22 -> 0.2552098125 | V30: =V22/AI22 -> 0.5466407317 | W30: =(AJ6+Y22)/AJ22 -> -0.5808548132 | X30: L | Y30: =(1-U30)*(1-V30) -> 0.3376575344 | AE30: =R22/R30 -> 65460.49734 | AF30: L | AG30: =T22/T30 -> 33984.87898 | AK30: L | AL30: =(AL46*AL9*AL58)^Y9 -> 65460.49734 | AN30: =P0_2*AG30 -> 65460.49734 | AO30: L
W31: (t+Y) /l
G33: 0 | I33: -1.441653608e-09 | J33: 4.9545675 | K33: -29.52237124 | L33: 30.93805006 | R33: =R35-T33 -> -2289948 | T33: =-SUM(U33:W33) -> 2289948 | U33: =-SUM(U35:U38) -> -900029.3607 | V33: =-SUM(V35:V38) -> -859912.738 | W33: =-SUM(W35:W38) -> -530005.9013 | AE33: =AE35-AG33 -> -4410818.56 | AG33: =-SUM(AH33:AJ33) -> 4410818.56 | AH33: =-SUM(AH35:AH38) -> -1733605.396 | AI33: =-SUM(AI35:AI38) -> -1656334.146 | AJ33: =-SUM(AJ35:AJ38) -> -1020879.018
H34: B | I34: 0 | J34: 1 | K34: 2 | L34: L | R34: hQ | S34: HQ | T34: 0 | U34: 1 | V34: 2 | W34: L | AE34: hb | AF34: Hb | AG34: 0 | AH34: 1 | AI34: 2 | AJ34: L | AN34: (PU + s)/N
F35: 0 | G35: 0 | H35: 0 | I35: 34228.89216 | J35: -334.4927125 | K35: -742.2507634 | L35: -2922 | M35: 0 | R35: =T35-T35 -> 0 | S35: 0 | T35: =-T33-SUM(T36:T38) -> -530005.9013 | U35: =U6*AG28 -> 302053.7015 | V35: =V6*AG29 -> 261937.0788 | W35: =W6*AG30 -> 0 | X35: 0 | AE35: =AG35-AG35 -> 0 | AF35: 0 | AG35: =-AG33-SUM(AG36:AG38) -> -1020879.018 | AH35: =U6*AE28 -> 581805.3827 | AI35: =V6*AE29 -> 504534.1329 | AJ35: =W6*AE30 -> 0 | AK35: 0 | AO35: 0
F36: 1 | H36: 1 | I36: -13235.44549 | J36: 165.5072875 | K36: 162.8632417 | L36: 320.5232524 | M36: 1 | R36: =R7*$AG28 -> 1208214.806 | S36: 1 | T36: =T7*$AG28 -> -906161.1045 | U36: 302053.7015 | V36: 302053.7015 | W36: 302053.7015 | X36: 1 | AE36: =R7*$AE28 -> 2327221.531 | AF36: 1 | AG36: =T7*$AE28 -> -1745416.148 | AH36: 581805.3827 | AI36: 581805.3827 | AJ36: 581805.3827 | AK36: 1 | AN36: =(AG56+AG84)/T7 -> 581805.3827 | AO36: 1
C37: System State | F37: 2 | H37: 2 | I37: -11909.84877 | J37: 97.61107593 | K37: 257.7492366 | L37: 316.1103346 | M37: 2 | R37: =R8*$AG29 -> 1047748.315 | S37: 2 | T37: -785811.2363 | U37: 261937.0788 | V37: 261937.0788 | W37: 261937.0788 | X37: 2 | AE37: =R8*$AE29 -> 2018136.531 | AF37: 2 | AG37: -1513602.399 | AH37: 504534.1329 | AI37: 504534.1329 | AJ37: 504534.1329 | AK37: 2 | AN37: =(AG57+AG85)/T8 -> 504534.1329 | AO37: 2
C38: at time = t > | F38: L | G38: -40435.84835 | H38: L | I38: -9083.597902 | J38: 66.41978165 | K38: 351.1606563 | L38: 2254.428363 | M38: L | R38: =R9*$AG30 -> 33984.87898 | S38: L | T38: -67969.75796 | U38: 33984.87898 | V38: 33984.87898 | W38: -33984.87898 | X38: L | AE38: =R9*$AE30 -> 65460.49734 | AF38: L | AG38: -130920.9947 | AH38: 65460.49734 | AI38: 65460.49734 | AJ38: -65460.49734 | AK38: L | AN38: =(AG58+AG86)/T9 -> 65460.49734 | AO38: L
S40: __ | AD40: Intersection of
G41: 0 | I41: -1.479210218e-09 | J41: 4.9545675 | K41: -29.52237124 | L41: 30.93805006 | R41: =SUM(R36:R38) -> 2289948 | S41: Q | T41: =SUM(T36:T38) -> -1759942.099 | U41: =SUM(U36:U38) -> 597975.6592 | V41: =SUM(V36:V38) -> 597975.6592 | W41: =SUM(W36:W37) -> 563990.7803 | AD41: S/D Schedules > | AE41: =AE33/AE17 -> 1 | AG41: =AG33/AG17 -> 1.92616538 | AH41: =AH33/AH17 -> 838.4129363 | AI41: =AI33/AI17 -> 101.9002941 | AJ41: =AJ33/AJ17 -> 18.98575016 | AO41: 1/(N+1)
H42: C | I42: 0 | J42: 1 | K42: 2 | L42: L | T42: 0 | U42: 1 | V42: 2 | W42: L | AF42: c Hb/m | AG42: 0 | AH42: 1 | AI42: 2 | AJ42: L | AL42: p | AN42: (pZPU)
F43: 0 | G43: 0 | H43: 0 | I43: 34228.89216 | J43: -334.4927125 | K43: -742.2507634 | L43: -2922 | M43: 0 | AD43: Marginal Costs of Production > | AE43: 1 | AF43: 0 | AG43: =AG35/AG19 -> 1.92616538 | AH43: 838.4129363 | AI43: 101.9002941 | AK43: 0 | AO43: 0
F44: 1 | H44: 1 | I44: -13235.44549 | J44: 165.5072875 | K44: 162.8632417 | L44: 320.5232524 | M44: 1 | T44: =-GPE!E10 -> -104588.8261 | U44: =-GPE!F10 -> 100 | V44: =-GPE!G10 -> 750 | W44: =-GPE!H10 -> 8766 | AE44: =AE36/AE20 -> 1 | AF44: 1 | AG44: 1.92616538 | AH44: 838.4129363 | AI44: 101.9002941 | AJ44: =AJ36/AJ20 -> 18.98575016 | AK44: 1 | AL44: =AH49 -> 838.4129363 | AN44: =(AL44*AL7*AL56)^Y7 -> 581805.3827 | AO44: 1
F45: 2 | H45: 2 | I45: -11909.84877 | J45: 97.61107593 | K45: 257.7492366 | L45: 316.1103346 | M45: 2 | R45: =-R83 -> 0 | S45: Yt | T45: =-T83 -> -102686.6765 | U45: =Y20 -> 100.3478138 | V45: =Y21 -> 742.2507634 | W45: =AJ6 -> 8766 | Y45: < Output | AD45: Values of > | AE45: =AE37/AE21 -> 1 | AF45: 2 | AG45: 1.92616538 | AH45: 838.4129363 | AI45: 101.9002941 | AJ45: =AJ37/AJ21 -> 18.98575016 | AK45: 2 | AL45: =AI49 -> 101.9002941 | AN45: =(AL45*AL8*AL57)^Y8 -> 504534.1329 | AO45: 2
F46: L | G46: -40435.84835 | H46: L | I46: -9083.597902 | J46: 66.41978165 | K46: 351.1606563 | L46: 2254.428363 | M46: L | T46: 0 | U46: 1 | V46: 2 | W46: L | AD46: Marginal Product | AE46: =AE38/AE22 -> 1 | AF46: L | AG46: 1.92616538 | AH46: 838.4129363 | AI46: 101.9002941 | AJ46: =AJ38/AJ22 -> 18.98575016 | AK46: L | AL46: =-AJ49 -> -18.98575016 | AN46: =(AL46*AL9*AL58)^Y9 -> 65460.49734 | AO46: L
R48: =AE48/AG48 -> 0.5 | T48: =GPE!E18/GPE!$E18 -> 1 | U48: =GPE!F18/GPE!$E18 -> 441.9334589 | V48: =GPE!G18/GPE!$E18 -> 53.8606403 | W48: =GPE!H18/GPE!$E18 -> 10 | AE48: 1 | AG48: =GPE!E18 -> 2 | AH48: =GPE!F18 -> 883.8669178 | AI48: =GPE!G18 -> 107.7212806 | AJ48: =GPE!H18 -> 20
G49: =3*G41/Term2 -> 0 | L49: -10211.1603 | Q49: Currency > | R49: =R33/AE33 -> 0.5191662203 | S49: Y | T49: ='Econ 0'!H19 -> 1 | U49: ='Econ 0'!I19 -> 435.2756752 | V49: ='Econ 0'!J19 -> 52.90319055 | W49: ='Econ 0'!K19 -> 9.856760152 | Y49: < Values | AD49: Prices > | AE49: =P0_2*R49 -> 1 | AF49: P | AG49: =AG33/(T53+T17) -> 1.92616538 | AH49: =P0_2*U49 -> 838.4129363 | AI49: =P0_2*V49 -> 101.9002941 | AJ49: =P0_2*W49 -> 18.98575016
P50: Value | R50: G/$ | T50: 0 | U50: 1 | V50: 2 | W50: L | Y50: G/unit | AC50: $/unit | AE50: $/$ | AG50: 0 | AH50: 1 | AI50: 2 | AJ50: L
F51: 0 | G51: =3*G43/Term2 -> 0 | H51: 0
F52: 1 | H52: 1
E53: Maturing > | F53: 2 | H53: 2 | R53: =R55-T53 -> -2289948 | T53: =-SUM(U53:W53) -> 2289948 | U53: =U$49*AH4 -> -900676.3415 | V53: =V$49*AI4 -> -858350.9104 | W53: =W$49*AJ4 -> -530920.7481 | AE53: =AE55-AG53 -> -4410818.56 | AG53: =-SUM(AH53:AJ53) -> 4410818.56 | AH53: =AH$49*AH4 -> -1734851.588 | AI53: =AI$49*AI4 -> -1653325.807 | AJ53: =AJ$49*AJ4 -> -1022641.165
E54: Principal | F54: L | G54: =3*G46/Term2 -> -26137.93178 | H54: L | R54: ¡ | S54: YU | T54: 0 | U54: 1 | V54: 2 | W54: L | AE54: u | AF54: PU | AG54: 0 | AH54: 1 | AI54: 2 | AJ54: L | AL54: PU
R55: =T55-T55 -> 0 | S55: 0 | T55: =-T53-SUM(T56:T58) -> -632692.5778 | U55: =U$49*AH6 -> 345732.6639 | V55: 301204.5123 | W55: 86404.35949 | X55: 0 | AE55: =AG55-AG55 -> 0 | AF55: 0 | AG55: =-AG53-SUM(AG56:AG58) -> -1218670.539 | AH55: =AH$49*AH6 -> 665938.2879 | AI55: 580169.704 | AJ55: 166429.0859 | AK55: 0
R56: =U55-T56 -> 1212187.432 | S56: 1 | T56: =-SUM(U56:W56) -> -866454.768 | U56: 280441.3126 | V56: 293437.7164 | W56: 292575.739 | X56: 1 | Y56: Interaction | AD56: Interaction | AE56: =AH55-AG56 -> 2334873.465 | AF56: 1 | AG56: =-SUM(AH56:AJ56) -> -1668935.177 | AH56: 540176.3475 | AI56: 565209.5705 | AJ56: 563549.2595 | AK56: 1 | AL56: =AH56*AI56*AJ56 -> 1.720588257e+17
R57: =V55-T57 -> 1051286.202 | S57: 2 | T57: =-SUM(U57:W57) -> -750081.69 | U57: 249190.7607 | V57: 248301.3218 | W57: 252589.6075 | X57: 2 | Y57: < of Utility | AD57: of Utility > | AE57: =AI55-AG57 -> 2024951.087 | AF57: 2 | AG57: =-SUM(AH57:AJ57) -> -1444781.383 | AH57: 479982.6162 | AI57: 478269.4098 | AJ57: 486529.3573 | AK57: 2 | AL57: =AH57*AI57*AJ57 -> 1.116881671e+17
R58: =W55+W58-T58 -> 26474.36581 | S58: L | T58: =-SUM(U58:V58) -> -40718.96426 | U58: 25311.60439 | V58: 15407.35987 | W58: -100648.9579 | X58: L | Y58: with Values | AD58: with Prices | AE58: =AJ55+AJ58-AG58 -> 50994.00688 | AF58: L | AG58: =-SUM(AH58:AI58) -> -78431.45926 | AH58: 48754.33609 | AI58: 29677.12317 | AJ58: -193866.5383 | AK58: L | AL58: =AH58*AI58 -> 1446888437
E59: - i | G59: Domestic
E60: =-I63/I60-V0_2 -> 0.09956154678 | F60: < | G60: Interest | I60: =-I20-I21 -> 75435.88279 | J60: < Asset Valuations, a | AG60: - PU
E61: -0.1 | G61: Rate | I61: 0
R62: =AE62/AE$49-AE53 -> 6.938353181e-07 | T62: =AG62/AG$49-T53 -> 4.749745131e-08 | U62: =AH62/AH$49-AH4 -> 1.48637025 | V62: =AI62/AI$49-AI4 -> -29.52237124 | W62: =AJ62/AJ$49-AJ4 -> 92.81415018 | AE62: =AE64-AG62 -> -4410818.56 | AG62: =-SUM(AH62:AJ62) -> 4410818.56 | AH62: =-SUM(AH64:AH67) -> -1733605.396 | AI62: =-SUM(AI64:AI67) -> -1656334.146 | AJ62: =-SUM(AJ64:AJ67) -> -1020879.018
E63: Supply Valuations, YS | H63: > | I63: =-SUM(J63:K63) -> -82946.39596 | J63: =U49*U73 -> 43678.96239 | K63: =V49*V73 -> 39267.43357 | R63: -f | S63: Q | T63: 0 | U63: 1 | V63: 2 | W63: L | AE63: hz | AF63: Hz | AG63: 0 | AH63: 1 | AI63: 2 | AJ63: L
I64: 0 | J64: 1 | K64: 2 | R64: =AE64/AE$49-AE55 -> 0 | S64: 0 | T64: =AG64/AG$49-T55 -> 102686.6765 | U64: =AH64/AH$49-AH6 -> -100.3478138 | V64: -742.2507634 | W64: -8766 | X64: 0 | AE64: =AG64-AG64 -> 0 | AF64: 0 | AG64: =-AG62-SUM(AG65:AG67) -> -1020879.018 | AH64: =U6*$AL28 -> 581805.3827 | AI64: =V6*$AL29 -> 504534.1329 | AJ64: =W6*$AL30 -> 0 | AK64: 0
R65: =AE65/AE$49-AE56 -> -7651.934521 | S65: 1 | T65: =AG65/AG$49-T56 -> -39706.33646 | U65: 49.65218624 | V65: 162.8632417 | W65: 961.5697571 | X65: 1 | Y65: Optimal | AE65: =R7*$AL28 -> 2327221.531 | AF65: 1 | AG65: =T7*$AL28 -> -1745416.148 | AH65: 581805.3827 | AI65: 581805.3827 | AJ65: 581805.3827 | AK65: 1
I66: NPV | J66: 1 | R66: =AE66/AE$49-AE57 -> -6814.55594 | S66: 2 | T66: =AG66/AG$49-T57 -> -35729.54632 | U66: 29.28332278 | V66: 257.7492366 | W66: 948.3310039 | X66: 2 | Y66: < Rates of | AE66: =R8*$AL29 -> 2018136.531 | AF66: 2 | AG66: -1513602.399 | AH66: 504534.1329 | AI66: 504534.1329 | AJ66: 504534.1329 | AK66: 2
E67: Investment | G67: =LN(1+E60)*(1+E60)^Term2-E60*Kappa2/Gamma2 -> 0.266696585 | I67: =1/(1-E60*Term2*Kappa2/Gamma2) -> 0.6437213076 | J67: 1+iTk/g | R67: =AE67/AE$49-AE58 -> 14466.49046 | S67: L | T67: =AG67/AG$49-T58 -> -27250.79371 | U67: 19.9259345 | V67: 351.1606563 | W67: 6763.285089 | X67: L | Y67: Change | AE67: =R9*$AL30 -> 65460.49734 | AF67: L | AG67: -130920.9947 | AH67: 65460.49734 | AI67: 65460.49734 | AJ67: -65460.49734 | AK67: L
E68: Term | I68: 0.5131581182
E69: Calculation | G69: =Term2-(1/I69-1/NPV_2)/G67 -> 4.641053703 | I69: =1/(1+E60)^Term2 -> 0.6437213076 | J69: 1 | Y69: Domestic
I70: NPV | J70: (1 - i)T | R70: =SUM(R65:R67) -> -6.937480066e-07 | S70: D | T70: =SUM(T65:T67) -> -102686.6765 | U70: =SUM(U65:U67) -> 98.86144351 | V70: =SUM(V65:V67) -> 771.7731346 | W70: =SUM(W65:W66) -> 1909.900761 | Y70: < Demand
T71: 0 | U71: 1 | V71: 2 | W71: L
Y72: Domestic
R73: =R45+R14 -> 0 | S73: S | T73: =T45+T14 -> -102686.6765 | U73: =U45+U14 -> 100.3478138 | V73: =V45+V14 -> 742.2507634 | W73: =W45+Y22+W14 -> 2002.714911 | Y73: < Supply | AE73: 0 | AG73: =-SUM(AH73:AJ73) -> 0
T74: 0 | U74: 1 | V74: 2 | W74: L | AF74: FI | AG74: 0 | AH74: 1 | AI74: 2 | AJ74: L
E75: Domestic | G75: T | AE75: 0 | AF75: 0 | AG75: =-SUM(AH75:AJ75) -> 0 | AH75: 0 | AI75: 0 | AJ75: 0 | AK75: 0
E76: Investment | F76: > | G76: 4.641053703 | Y76: Demand | AD76: Equity | AE76: =-AG76 -> -3.760427189e-09 | AF76: 1 | AG76: =-SUM(AH76:AJ76) -> 3.760427189e-09 | AH76: 0 | AI76: =(AE45-AE44)*(V0_2-Iota2)*(E20+E21) -> -3.760427189e-09 | AK76: 1
E77: Term | G77: =ITerm -> 7 | S77: F | T77: ='Econ 0'!S20 -> 1 | U77: ='Econ 0'!T20 -> 1 | V77: ='Econ 0'!U20 -> 1 | W77: ='Econ 0'!V20 -> 1 | Y77: < Factors | AD77: Markets > | AE77: =-AG77 -> 3.760427189e-09 | AF77: 2 | AG77: =-SUM(AH77:AJ77) -> -3.760427189e-09 | AH77: =-AI76 -> 3.760427189e-09 | AI77: 0 | AK77: 2
T78: 0 | U78: 1 | V78: 2 | W78: L | AE78: 0 | AF78: L | AG78: =-SUM(AH78:AJ78) -> 0 | AK78: L
AM79: Monetary
Y80: imports ( - ) | AD80: Trade | AM80: < Transactions
E81: 0 | G81: 0 | I81: =I25+DT*(T81-I$9*I25*3) -> -1.390072025e-09 | J81: =J25+DT*(U81-J$9*J25*3) -> 4.9545675 | K81: =K25+DT*(V81-K$9*K25*3) -> -29.52237124 | L81: =L25+DT*(W81-L$9*L25*3) -> 30.93805006 | R81: =AE73+AE81 -> 7.72385025e-09 | T81: ='Econ 0'!S37 -> -4.00996214e-09 | U81: ='Econ 0'!T37 -> 1.48637025 | V81: ='Econ 0'!U37 -> -29.52237124 | W81: ='Econ 0'!V37 -> 92.81415019 | Y81: < eXports ( + ) | AD81: Balance > | AE81: =AE83-AG81 -> 7.72385025e-09 | AG81: =P0_2*T81 -> -7.72385025e-09 | AH81: =AH$49*U81 -> 1246.192046 | AI81: =AI$49*V81 -> -3008.338313 | AJ81: =AJ$49*W81 -> 1762.146267
H82: A | I82: 0 | J82: 1 | K82: 2 | L82: L | R82: r | S82: R | T82: 0 | U82: 1 | V82: 2 | W82: L | AE82: NCF | AF82: PR | AG82: 0 | AH82: 1 | AI82: 2 | AJ82: L
D83: 0 | E83: =E27+DT*(R83-Iota2*E27) -> 0 | F83: 0 | G83: =G27+DT*(R83-Nu_2*G19+G51-3*G27/Term2) -> 0 | H83: 0 | I83: =I27+DT*(T83-I$9*I27*3) -> 34228.89216 | J83: -334.4927125 | K83: -742.2507634 | L83: -2922 | M83: 0 | Q83: Debt | R83: =AE75+AE83 -> 0 | S83: 0 | T83: =-T81-SUM(T84:T86) -> 102686.6765 | U83: =-Y20 -> -100.3478138 | V83: =-Y21 -> -742.2507634 | W83: =-AJ6 -> -8766 | X83: 0 | Y83: < Output ( - ) | AD83: Cost of Sales | AE83: =AG83-AG83 -> 0 | AF83: 0 | AG83: =-SUM(AH83:AJ83) -> 197791.5213 | AH83: =-AH81-SUM(AH84:AH86) -> -84132.90519 | AI83: =-AI81-SUM(AI84:AI86) -> -75635.57111 | AJ83: =-AJ81-SUM(AJ84:AJ86) -> -38023.04495 | AK83: 0
D84: 1 | E84: =E28+DT*(R84-Iota2*E28) -> 76856.32423 | F84: 1 | H84: 1 | I84: -13235.44549 | J84: 165.5072875 | K84: 162.8632417 | L84: 320.5232524 | M84: 1 | Q84: Service > | R84: =AE76+AE84 -> -7651.93452 | S84: 1 | T84: =T$77*T65 -> -39706.33646 | U84: 49.65218624 | V84: 162.8632417 | W84: 961.5697571 | X84: 1 | AD84: Minus Sales > | AE84: =AH83-AG84 -> -7651.93452 | AF84: 1 | AG84: =-SUM(AH84:AJ84) -> -76480.97067 | AH84: =AH$49*U84 -> 41629.03526 | AI84: 16595.81224 | AJ84: 18256.12317 | AK84: 1
D85: 2 | E85: =E29+DT*(R85-Iota2*E29) -> 68445.66161 | F85: 2 | H85: 2 | I85: -11909.84877 | J85: 97.61107593 | K85: 257.7492366 | L85: 316.1103346 | M85: 2 | R85: =AE77+AE85 -> -6814.55594 | S85: 2 | T85: -35729.54632 | U85: 29.28332278 | V85: 257.7492366 | W85: 948.3310039 | X85: 2 | Y85: < Rates of | AE85: =AI83-AG85 -> -6814.55594 | AF85: 2 | AG85: =-SUM(AH85:AJ85) -> -68821.01517 | AH85: 24551.51663 | AI85: 26264.72303 | AJ85: 18004.77551 | AK85: 2
D86: L | F86: L | G86: =G30+DT*(R86-Nu_2*G22+G54-3*G30/Term2) -> -40435.84835 | H86: L | I86: -9083.597902 | J86: 66.41978165 | K86: 351.1606563 | L86: 2254.428363 | M86: L | Q86: Passive > | R86: =AE78+AE86 -> 14466.49046 | S86: L | T86: =T$77*T67 -> -27250.79371 | U86: =U$77*U67 -> 19.9259345 | V86: =V$77*V67 -> 351.1606563 | W86: =-W81-SUM(W83:W85) -> 6763.285089 | X86: L | Y86: Change | AD86: Consumption > | AE86: =AJ83-AG86 -> 14466.49046 | AF86: L | AG86: =-SUM(AH86:AJ86) -> -52489.53541 | AH86: =AH$49*U86 -> 16706.16125 | AI86: =AI$49*V86 -> 35783.37416 | AJ86: 0 | AK86: L
Q87: Income | AD87: Minus Wages | AG87: - s
G89: =G33+DT*3*(G25-G33)/Term2 -> 0 | I89: =I33+DT*I$9*3*(I25-I33) -> -1.440155723e-09 | J89: =J33+DT*J$9*3*(J25-J33) -> 4.9545675 | K89: =K33+DT*K$9*3*(K25-K33) -> -29.52237124 | L89: =L33+DT*L$9*3*(L25-L33) -> 30.93805006 | R89: =GPE!C8 -> -0.2886111448 | T89: =GPE!E8 -> 0 | U89: =GPE!F8 -> 0 | V89: =GPE!G8 -> 0 | W89: =GPE!H8 -> 0
H90: B | I90: 0 | J90: 1 | K90: 2 | L90: L | R90: r | S90: R | T90: 0 | U90: 1 | V90: 2 | W90: L
F91: 0 | G91: =G35+DT*3*(G27-G35)/Term2 -> 0 | H91: 0 | I91: =I35+DT*I$9*3*(I27-I35) -> 34228.89216 | J91: -334.4927125 | K91: -742.2507634 | L91: -2922 | M91: 0 | R91: =GPE!C10 -> 0 | S91: 0 | T91: =GPE!E10 -> 104588.8261 | U91: =GPE!F10 -> -100 | V91: =GPE!G10 -> -750 | W91: =GPE!H10 -> -8766 | X91: 0
F92: 1 | H92: 1 | I92: -13235.44549 | J92: 165.5072875 | K92: 162.8632417 | L92: 320.5232524 | M92: 1 | R92: =GPE!C11 -> -8035.153798 | S92: 1 | T92: =GPE!E11 -> -40175.76899 | U92: =GPE!F11 -> 50 | V92: =GPE!G11 -> 150 | W92: =GPE!H11 -> 1000 | X92: 1
F93: 2 | H93: 2 | I93: -11909.84877 | J93: 97.61107593 | K93: 257.7492366 | L93: 316.1103346 | M93: 2 | R93: =GPE!C12 -> -7344.632768 | S93: 2 | T93: =GPE!E12 -> -36723.16384 | U93: =GPE!F12 -> 30 | V93: =GPE!G12 -> 250 | W93: =GPE!H12 -> 1000 | X93: 2
F94: L | G94: =G38+DT*3*(G30-G38)/Term2 -> -40435.84835 | H94: L | I94: -9083.597902 | J94: 66.41978165 | K94: 351.1606563 | L94: 2254.428363 | M94: L | R94: =GPE!C13 -> 15379.78657 | S94: L | T94: =GPE!E13 -> -27689.89328 | U94: =GPE!F13 -> 20 | V94: =GPE!G13 -> 350 | W94: =GPE!H13 -> 6766 | X94: L
C95: System State
C96: at time = t + D >
G97: =G41+DT*3*(G33-G41)/Term2 -> 0 | I97: =I41+DT*I$9*3*(I33-I41) -> -1.47808352e-09 | J97: =J41+DT*J$9*3*(J33-J41) -> 4.9545675 | K97: =K41+DT*K$9*3*(K33-K41) -> -29.52237124 | L97: =L41+DT*L$9*3*(L33-L41) -> 30.93805006 | R97: u
H98: C | I98: 0 | J98: 1 | K98: 2 | L98: L | R98: (h/w-1)
F99: 0 | G99: =G43+DT*3*(G35-G43)/Term2 -> 0 | H99: 0 | I99: =I43+DT*I$9*3*(I35-I43) -> 34228.89216 | J99: -334.4927125 | K99: -742.2507634 | L99: -2922 | M99: 0 | S99: 0
F100: 1 | H100: 1 | I100: -13235.44549 | J100: 165.5072875 | K100: 162.8632417 | L100: 320.5232524 | M100: 1 | R100: =AE56/(R7/R28-1) -> -7651.93452 | S100: 1
F101: 2 | H101: 2 | I101: -11909.84877 | J101: 97.61107593 | K101: 257.7492366 | L101: 316.1103346 | M101: 2 | R101: =AE57/(R8/R29-1) -> -6814.55594 | S101: 2
F102: L | G102: =G46+DT*3*(G38-G46)/Term2 -> -40435.84835 | H102: L | I102: -9083.597902 | J102: 66.41978165 | K102: 351.1606563 | L102: 2254.428363 | M102: L | R102: =AE58/(R9/R30-1) -> 14466.49046 | S102: L
L105: =L49+DT*R105 -> -10211.1603 | R105: =(R102-R22)/AJ49/(1-Y30) -> 3.912794835e-10 | S105: < | T105: ∂ZL/∂t
L106: -10219.74286

Sheet Series
B4: BUFFER ->
C5: =TicToc -> 300.0014954 | D5: ='Econ 1'!V45 -> 825.7545529 | E5: ='Econ 1'!V70 -> 796.2321817 | F5: ='Econ 2'!V45 -> 742.2507634 | G5: ='Econ 2'!V70 -> 771.7731346 | H5: =-Iota1 -> 0.1046848452 | I5: =-Iota2 -> 0.09956154678 | J5: ='Econ 1'!R49 -> 0.4652255139 | K5: ='Econ 2'!R49 -> 0.5191662203 | L5: =-Utility!H31 -> 10219.74286 | M5: =-Zl_1 -> 10281.25466 | N5: =-Zl_2 -> 10211.1603 | O5: =GPE!H13 -> 6766 | P5: ='Econ 1'!W22 -> 6825.508136 | Q5: ='Econ 2'!W22 -> 6763.285089 | R5: ='Econ 1'!AI43 -> 113.7151531 | S5: ='Econ 1'!AI44 -> 113.7151531 | T5: ='Econ 1'!AI45 -> 113.7151531 | U5: ='Econ 1'!AI46 -> 113.7151531 | V5: ='Econ 1'!AI49 -> 113.7151531 | W5: =GPE!G$18 -> 107.7212806 | X5: =-'Econ 1'!AE81 -> 8.627214112e-09 | Y5: =-'Econ 1'!R70 -> -1.657303073e-06 | Z5: =-'Econ 2'!AE81 -> -7.72385025e-09 | AA5: =-'Econ 2'!R70 -> 6.937480066e-07
A7: BOX: | C7: year | D7: S1 | E7: D1 | F7: S2 | G7: D2 | H7: i E1 | I7: i E2 | J7: 1/P01 | K7: 1/P02 | L7: -ZL | M7: -ZL1 | N7: -ZL2 | O7: -YL | P7: -YL1 | Q7: -YL2 | R7: MC2 | S7: VMP1 | T7: VMP2 | U7: VMPL | V7: P | W7: P* | X7: r E1 | Y7: -f E1 | Z7: r E2 | AA7: -f E2
A8: 0 | C8: 0 | D8: 764.0286566 | E8: 846.4082834 | F8: 750 | G8: 754.4586324 | H8: 0.1094932694 | I8: 0.09967358933 | J8: 0.4566490731 | K8: 0.501637398 | L8: 10219.74286 | M8: 10219.74286 | N8: 10219.74286 | O8: 6766 | P8: 6766 | Q8: 6766 | R8: 115.7818666 | S8: 117.947552 | T8: 117.947552 | U8: 117.947552 | V8: 117.6119666 | W8: 107.7212806 | X8: 14258.17147 | Y8: -42148.98618 | Z8: -13011.43944 | AA8: 1054.144875
A9: =1+A8 -> 1 | C9: 10.00013351 | D9: 824.7196012 | E9: 798.7187199 | F9: 739.7584938 | G9: 771.8481486 | H9: 0.1041485342 | I9: 0.100405536 | J9: 0.4716566654 | K9: 0.5151452117 | L9: 10219.74286 | M9: 10283.23346 | N9: 10223.14123 | O9: 6766 | P9: 6823.332353 | Q9: 6758.73529 | R9: 112.5119011 | S9: 112.5061444 | T9: 112.5317084 | U9: 112.5203837 | V9: 112.5165411 | W9: 107.7212806 | X9: 123.0968477 | Y9: 981.8484502 | Z9: -112.6037252 | AA9: -2447.239335
A10: 2 | C10: 20.0003624 | D10: 825.4631744 | E10: 797.1739808 | F10: 740.774539 | G10: 771.7396493 | H10: 0.1049009831 | I10: 0.09952625296 | J10: 0.4656663476 | K10: 0.5200114185 | L10: 10219.74286 | M10: 10282.26991 | N10: 10215.11069 | O10: 6766 | P10: 6824.625768 | Q10: 6760.485031 | R10: 113.7278485 | S10: 113.739032 | T10: 113.7391022 | U10: 113.7430723 | V10: 113.7383118 | W10: 107.7212806 | X10: 7.695100855 | Y10: -1298.536373 | Z10: -6.893100035 | AA10: 514.1539259
A11: 3 | C11: 30.00059128 | D11: 825.6155535 | E11: 796.6806884 | F11: 741.4933298 | G11: 771.740615 | H11: 0.1048011431 | I11: 0.09953507488 | J11: 0.4653817819 | K11: 0.5196105223 | L11: 10219.74286 | M11: 10281.80857 | N11: 10213.02844 | O11: 6766 | P11: 6825.113141 | Q11: 6761.869355 | R11: 113.7355997 | S11: 113.7405006 | T11: 113.741332 | U11: 113.7385055 | V11: 113.7403284 | W11: 107.7212806 | X11: 3.70326401 | Y11: -679.8691053 | Z11: -3.317349034 | AA11: 288.8423936
A12: 4 | C12: 39.99929428 | D12: 825.6874788 | E12: 796.4471554 | F12: 741.8837846 | G12: 771.7566267 | H12: 0.1047403253 | I12: 0.0995492665 | J12: 0.4653026014 | K12: 0.5193759881 | L12: 10219.74286 | M12: 10281.51963 | N12: 10212.0681 | O12: 6766 | P12: 6825.317424 | Q12: 6762.603827 | R12: 113.7246599 | S12: 113.7269677 | T12: 113.7274252 | U12: 113.7261326 | V12: 113.7269003 | W12: 107.7212806 | X12: 1.763014177 | Y12: -325.6454848 | Z12: -1.579593216 | AA12: 137.4461027 | AE12: b2 | AF12: Z2 | AG12: b1-2-L | AH12: U1-2-L
A13: 5 | C13: 49.99761581 | D13: 825.7224032 | E13: 796.3352518 | F13: 742.0745966 | G13: 771.7652237 | H13: 0.1047115041 | I13: 0.09955562488 | J13: 0.4652621697 | K13: 0.5192670049 | L13: 10219.74286 | M13: 10281.38136 | N13: 10211.59687 | O13: 6766 | P13: 6825.416368 | Q13: 6762.958476 | R13: 113.7197919 | S13: 113.7209033 | T13: 113.7211187 | U13: 113.7205389 | V13: 113.720869 | W13: 107.7212806 | X13: 0.8266450366 | Y13: -156.3673497 | Z13: -0.7407016321 | AA13: 66.0727913 | AE13: ='Econ 1'!AE29 -> 565647.0827 | AF13: ='Econ 1'!AL8 -> 5800 | AG13: ='Econ 1'!AE28+'Econ 1'!AE29+'Econ 1'!AE30 -> 1288127.162 | AH13: ='Econ 1'!AI7+'Econ 1'!AI8+'Econ 1'!AI9 -> 10531.43283
A14: 6 | C14: 59.99593735 | D14: 825.7391323 | E14: 796.2816301 | F14: 742.1662433 | G14: 771.7693416 | H14: 0.1046976418 | I14: 0.09955870048 | J14: 0.4652430561 | K14: 0.5192145872 | L14: 10219.74286 | M14: 10281.31545 | N14: 10211.36974 | O14: 6766 | P14: 6825.464107 | Q14: 6763.128392 | R14: 113.7173885 | S14: 113.7179221 | T14: 113.7180251 | U14: 113.7177474 | V14: 113.7179055 | W14: 107.7212806 | X14: 0.3956793076 | Y14: -75.04041033 | Z14: -0.3545558226 | AA14: 31.72082467 | AE14: INITIAL | AF14: INITIAL
A15: 7 | C15: 69.99654388 | D15: 825.7471541 | E15: 796.255907 | F15: 742.2102101 | G15: 771.7713146 | H15: 0.1046909847 | I15: 0.09956018134 | J15: 0.4652339311 | K15: 0.5191894209 | L15: 10219.74286 | M15: 10281.28383 | N15: 10211.26078 | O15: 6766 | P15: 6825.487012 | Q15: 6763.209902 | R15: 113.7162256 | S15: 113.7164816 | T15: 113.716531 | U15: 113.7163977 | V15: 113.7164736 | W15: 107.7212806 | X15: 0.1899282371 | Y15: -36.00281303 | Z15: -0.1701919644 | AA15: 15.21904248 | AD15: Q1 | AE15: s | AF15: d | AG15: S | AH15: D
A16: 8 | C16: 79.99868011 | D16: 825.7510029 | E16: 796.2435652 | F16: 742.2313054 | G16: 771.7722613 | H16: 0.1046877908 | I16: 0.09956089171 | J16: 0.4652295527 | K16: 0.5191773507 | L16: 10219.74286 | M16: 10281.26865 | N16: 10211.20851 | O16: 6766 | P16: 6825.498 | Q16: 6763.249013 | R16: 113.7156677 | S16: 113.7157905 | T16: 113.7158142 | U16: 113.7157502 | V16: 113.7157867 | W16: 107.7212806 | X16: 0.09113619091 | Y16: -17.2738953 | Z16: -0.08166657329 | AA16: 7.301951232 | AD16: 700 | AE16: 106.6426664 | AF16: 108.2008333 | AG16: =$AE$13/($AF$13-AD16) -> 110.9111927 | AH16: =$AG$13/($AH$13+AD16) -> 114.6894774
A17: 9 | C17: 90.00081635 | D17: 825.7528496 | E17: 796.2376436 | F17: 742.2414272 | G17: 771.7727156 | H17: 0.1046862585 | I17: 0.09956123248 | J17: 0.4652274517 | K17: 0.5191715605 | L17: 10219.74286 | M17: 10281.26137 | N17: 10211.18343 | O17: 6766 | P17: 6825.503272 | Q17: 6763.267779 | R17: 113.7154 | S17: 113.7154589 | T17: 113.7154703 | U17: 113.7154396 | V17: 113.7154571 | W17: 107.7212806 | X17: 0.04372719197 | Y17: -8.288093486 | Z17: -0.03918383524 | AA17: 3.503519376 | AD17: =10+AD16 -> 710 | AE17: 106.8566577 | AF17: 108.1045815 | AG17: 111.1290929 | AH17: 114.5874535
A18: 10 | C18: 100.0029526 | D18: 825.7537357 | E18: 796.2348023 | F18: 742.2462838 | G18: 771.7729336 | H18: 0.1046855233 | I18: 0.09956139598 | J18: 0.4652264437 | K18: 0.5191687825 | L18: 10219.74286 | M18: 10281.25788 | N18: 10211.1714 | O18: 6766 | P18: 6825.505802 | Q18: 6763.276783 | R18: 113.7152716 | S18: 113.7152999 | T18: 113.7153053 | U18: 113.7152906 | V18: 113.715299 | W18: 107.7212806 | X18: 0.02098045141 | Y18: -3.976693487 | Z18: -0.01880057312 | AA18: 1.681020597 | AD18: =10+AD17 -> 720 | AE18: 107.0715096 | AF18: 108.0085008 | AG18: 111.3478509 | AH18: 114.4856109
A19: 11 | C19: 110.0050888 | D19: 825.7541608 | E19: 796.2334391 | F19: 742.248614 | G19: 771.7730382 | H19: 0.1046851705 | I19: 0.09956147442 | J19: 0.46522596 | K19: 0.5191674496 | L19: 10219.74286 | M19: 10281.2562 | N19: 10211.16562 | O19: 6766 | P19: 6825.507016 | Q19: 6763.281104 | R19: 113.71521 | S19: 113.7152235 | T19: 113.7152262 | U19: 113.7152191 | V19: 113.7152231 | W19: 107.7212806 | X19: 0.0100665669 | Y19: -1.908053988 | Z19: -0.009020655132 | AA19: 0.8065700384 | AD19: 730 | AE19: 107.2872272 | AF19: 107.9125907 | AG19: 111.5674719 | AH19: 114.3839493
A20: 12 | C20: 120.007225 | D20: 825.7543648 | E20: 796.232785 | F20: 742.2497321 | G20: 771.7730883 | H20: 0.1046850013 | I20: 0.09956151206 | J20: 0.465225728 | K20: 0.5191668101 | L20: 10219.74286 | M20: 10281.2554 | N20: 10211.16285 | O20: 6766 | P20: 6825.507598 | Q20: 6763.283177 | R20: 113.7151804 | S20: 113.7151869 | T20: 113.7151882 | U20: 113.7151848 | V20: 113.7151867 | W20: 107.7212806 | X20: 0.004830028688 | Y20: -0.9155028351 | Z20: -0.004328192964 | AA20: 0.3870003532 | AD20: 740 | AE20: 107.5038158 | AF20: 107.8168508 | AG20: 111.787961 | AH20: 114.282468
A21: 13 | C21: 130.0078278 | D21: 825.7544627 | E21: 796.2324712 | F21: 742.2502686 | G21: 771.7731124 | H21: 0.1046849201 | I21: 0.09956153012 | J21: 0.4652256166 | K21: 0.5191665033 | L21: 10219.74286 | M21: 10281.25501 | N21: 10211.16152 | O21: 6766 | P21: 6825.507878 | Q21: 6763.284171 | R21: 113.7151662 | S21: 113.7151693 | T21: 113.7151699 | U21: 113.7151683 | V21: 113.7151692 | W21: 107.7212806 | X21: 0.002317492096 | Y21: -0.439267397 | Z21: -0.002076707177 | AA21: 0.185686678 | AD21: 750 | AE21: 107.7212806 | AF21: 107.7212806 | AG21: 112.0093233 | AH21: 114.1811666
A22: 14 | C22: 140.0023346 | D22: 825.7545096 | E22: 796.2323206 | F22: 742.250526 | G22: 771.773124 | H22: 0.1046848811 | I22: 0.09956153879 | J22: 0.4652255632 | K22: 0.5191663561 | L22: 10219.74286 | M22: 10281.25483 | N22: 10211.16089 | O22: 6766 | P22: 6825.508012 | Q22: 6763.284649 | R22: 113.7151594 | S22: 113.7151609 | T22: 113.7151612 | U22: 113.7151604 | V22: 113.7151609 | W22: 107.7212806 | X22: 0.0011119575 | Y22: -0.2107649368 | Z22: -0.0009964264314 | AA22: 0.08909435897 | AD22: 760 | AE22: 107.939627 | AF22: 107.6258797 | AG22: 112.231564 | AH22: 114.0800446
A23: 15 | C23: 149.9968414 | D23: 825.7545321 | E23: 796.2322483 | F23: 742.2506495 | G23: 771.7731295 | H23: 0.1046848624 | I23: 0.09956154294 | J23: 0.4652255376 | K23: 0.5191662854 | L23: 10219.74286 | M23: 10281.25474 | N23: 10211.16058 | O23: 6766 | P23: 6825.508076 | Q23: 6763.284878 | R23: 113.7151561 | S23: 113.7151569 | T23: 113.715157 | U23: 113.7151566 | V23: 113.7151568 | W23: 107.7212806 | X23: 0.0005335279694 | Y23: -0.1011271651 | Z23: -0.0004780950959 | AA23: 0.04274838512 | AD23: 770 | AE23: 108.1588604 | AF23: 107.5306476 | AG23: 112.4546884 | AH23: 113.9791017
A24: 16 | C24: 159.9913483 | D24: 825.754543 | E24: 796.2322137 | F24: 742.2507087 | G24: 771.7731322 | H24: 0.1046848534 | I24: 0.09956154494 | J24: 0.4652255253 | K24: 0.5191662516 | L24: 10219.74286 | M24: 10281.2547 | N24: 10211.16043 | O24: 6766 | P24: 6825.508107 | Q24: 6763.284987 | R24: 113.7151546 | S24: 113.7151549 | T24: 113.715155 | U24: 113.7151548 | V24: 113.7151549 | W24: 107.7212806 | X24: 0.0002559914166 | Y24: -0.04852184503 | Z24: -0.0002293942453 | AA24: 0.02051110596 | AD24: 780 | AE24: 108.3789861 | AF24: 107.435584 | AG24: 112.6787017 | AH24: 113.8783371
A25: 17 | C25: 169.9858551 | D25: 825.7545481 | E25: 796.232197 | F25: 742.2507372 | G25: 771.7731334 | H25: 0.1046848491 | I25: 0.0995615459 | J25: 0.4652255194 | K25: 0.5191662353 | L25: 10219.74286 | M25: 10281.25468 | N25: 10211.16036 | O25: 6766 | P25: 6825.508122 | Q25: 6763.28504 | R25: 113.7151538 | S25: 113.715154 | T25: 113.715154 | U25: 113.7151539 | V25: 113.715154 | W25: 107.7212806 | X25: 0.0001228275662 | Y25: -0.02328127553 | Z25: -0.0001100659681 | AA25: 0.009841440311 | AD25: 790 | AE25: 108.6000097 | AF25: 107.3406882 | AG25: 112.9036093 | AH25: 113.7777506
A26: 18 | C26: 179.9803619 | D26: 825.7545506 | E26: 796.2321891 | F26: 742.2507508 | G26: 771.7731341 | H26: 0.1046848471 | I26: 0.09956154636 | J26: 0.4652255165 | K26: 0.5191662275 | L26: 10219.74286 | M26: 10281.25467 | N26: 10211.16033 | O26: 6766 | P26: 6825.508129 | Q26: 6763.285065 | R26: 113.7151535 | S26: 113.7151535 | T26: 113.7151536 | U26: 113.7151535 | V26: 113.7151535 | W26: 107.7212806 | X26: 5.893325452e-05 | Y26: -0.01117059593 | Z26: -5.281015307e-05 | AA26: 0.004722022895 | AD26: 800 | AE26: 108.8219366 | AF26: 107.24596 | AG26: 113.1294165 | AH26: 113.6773417
A27: 19 | C27: 189.9748688 | D27: 825.7545518 | E27: 796.2321852 | F27: 742.2507573 | G27: 771.7731343 | H27: 0.1046848461 | I27: 0.09956154658 | J27: 0.4652255152 | K27: 0.5191662237 | L27: 10219.74286 | M27: 10281.25466 | N27: 10211.16031 | O27: 6766 | P27: 6825.508132 | Q27: 6763.285078 | R27: 113.7151533 | S27: 113.7151533 | T27: 113.7151533 | U27: 113.7151533 | V27: 113.7151533 | W27: 107.7212806 | X27: 2.827745166e-05 | Y27: -0.005359764269 | Z27: -2.533947235e-05 | AA27: 0.002265674811 | AD27: 810 | AE27: 109.0447723 | AF27: 107.1513987 | AG27: 113.3561288 | AH27: 113.5771098
A28: 20 | C28: 199.9693756 | D28: 825.7545524 | E28: 796.2321834 | F28: 742.2507605 | G28: 771.7731345 | H28: 0.1046848456 | I28: 0.09956154668 | J28: 0.4652255145 | K28: 0.5191662219 | L28: 10219.74286 | M28: 10281.25466 | N28: 10211.16031 | O28: 6766 | P28: 6825.508134 | Q28: 6763.285083 | R28: 113.7151532 | S28: 113.7151532 | T28: 113.7151532 | U28: 113.7151532 | V28: 113.7151532 | W28: 107.7212806 | X28: 1.356819658e-05 | Y28: -0.00257167386 | Z28: -1.215845508e-05 | AA28: 0.00108709585 | AD28: 820 | AE28: 109.2685226 | AF28: 107.0570041 | AG28: 113.5837515 | AH28: 113.4770545
A29: 21 | C29: 209.9638824 | D29: 825.7545527 | E29: 796.2321825 | F29: 742.250762 | G29: 771.7731346 | H29: 0.1046848454 | I29: 0.09956154673 | J29: 0.4652255142 | K29: 0.5191662211 | L29: 10219.74286 | M29: 10281.25466 | N29: 10211.1603 | O29: 6766 | P29: 6825.508135 | Q29: 6763.285086 | R29: 113.7151532 | S29: 113.7151532 | T29: 113.7151532 | U29: 113.7151532 | V29: 113.7151532 | W29: 107.7212806 | X29: 6.509599352e-06 | Y29: -0.001233914663 | Z29: -5.833272125e-06 | AA29: 0.0005215986093 | AD29: 830 | AE29: 109.493193 | AF29: 106.9627757 | AG29: 113.8122903 | AH29: 113.3771753
A30: 22 | C30: 219.9583893 | D30: 825.7545528 | E30: 796.2321821 | F30: 742.2507627 | G30: 771.7731346 | H30: 0.1046848453 | I30: 0.09956154676 | J30: 0.4652255141 | K30: 0.5191662207 | L30: 10219.74286 | M30: 10281.25466 | N30: 10211.1603 | O30: 6766 | P30: 6825.508135 | Q30: 6763.285088 | R30: 113.7151531 | S30: 113.7151531 | T30: 113.7151531 | U30: 113.7151531 | V30: 113.7151531 | W30: 107.7212806 | X30: 3.12393197e-06 | Y30: -0.0005920433614 | Z30: -2.799363812e-06 | AA30: 0.0002502681164 | AD30: 840 | AE30: 109.7187892 | AF30: 106.868713 | AG30: 114.0417505 | AH30: 113.2774718
A31: 23 | C31: 229.9528961 | D31: 825.7545529 | E31: 796.2321819 | F31: 742.2507631 | G31: 771.7731346 | H31: 0.1046848452 | I31: 0.09956154677 | J31: 0.465225514 | K31: 0.5191662205 | L31: 10219.74286 | M31: 10281.25466 | N31: 10211.1603 | O31: 6766 | P31: 6825.508135 | Q31: 6763.285088 | R31: 113.7151531 | S31: 113.7151531 | T31: 113.7151531 | U31: 113.7151531 | V31: 113.7151531 | W31: 107.7212806 | X31: 1.498901231e-06 | Y31: -0.000284068723 | Z31: -1.343179135e-06 | AA31: 0.0001200815022 | AD31: 850 | AE31: 109.9453169 | AF31: 106.7748156 | AG31: 114.2721379 | AH31: 113.1779435
A32: 24 | C32: 239.947403 | D32: 825.7545529 | E32: 796.2321818 | F32: 742.2507632 | G32: 771.7731346 | H32: 0.1046848452 | I32: 0.09956154677 | J32: 0.465225514 | K32: 0.5191662204 | L32: 10219.74286 | M32: 10281.25466 | N32: 10211.1603 | O32: 6766 | P32: 6825.508135 | Q32: 6763.285089 | R32: 113.7151531 | S32: 113.7151531 | T32: 113.7151531 | U32: 113.7151531 | V32: 113.7151531 | W32: 107.7212806 | X32: 7.199938502e-07 | Y32: -0.0001362979383 | Z32: -6.451987968e-07 | AA32: 5.761651846e-05 | AD32: 860 | AE32: 110.1727819 | AF32: 106.681083 | AG32: 114.503458 | AH32: 113.0785899
A33: 25 | C33: 249.9419098 | D33: 825.7545529 | E33: 796.2321817 | F33: 742.2507633 | G33: 771.7731346 | H33: 0.1046848452 | I33: 0.09956154678 | J33: 0.4652255139 | K33: 0.5191662203 | L33: 10219.74286 | M33: 10281.25466 | N33: 10211.1603 | O33: 6766 | P33: 6825.508136 | Q33: 6763.285089 | R33: 113.7151531 | S33: 113.7151531 | T33: 113.7151531 | U33: 113.7151531 | V33: 113.7151531 | W33: 107.7212806 | X33: 3.451525892e-07 | Y33: -6.539472088e-05 | Z33: -3.092798517e-07 | AA33: 2.764263627e-05 | AD33: 870 | AE33: 110.4011901 | AF33: 106.5875149 | AG33: 114.7357166 | AH33: 112.9794106
A34: 26 | C34: 259.9424133 | D34: 825.7545529 | E34: 796.2321817 | F34: 742.2507633 | G34: 771.7731346 | H34: 0.1046848452 | I34: 0.09956154678 | J34: 0.4652255139 | K34: 0.5191662203 | L34: 10219.74286 | M34: 10281.25466 | N34: 10211.1603 | O34: 6766 | P34: 6825.508136 | Q34: 6763.285089 | R34: 113.7151531 | S34: 113.7151531 | T34: 113.7151531 | U34: 113.7151531 | V34: 113.7151531 | W34: 107.7212806 | X34: 1.656125024e-07 | Y34: -3.137800377e-05 | Z34: -1.484174001e-07 | AA34: 1.326395432e-05 | AD34: 880 | AE34: 110.6305474 | AF34: 106.4941107 | AG34: 114.9689192 | AH34: 112.8804052
A35: 27 | C35: 269.952179 | D35: 825.7545529 | E35: 796.2321817 | F35: 742.2507634 | G35: 771.7731346 | H35: 0.1046848452 | I35: 0.09956154678 | J35: 0.4652255139 | K35: 0.5191662203 | L35: 10219.74286 | M35: 10281.25466 | N35: 10211.1603 | O35: 6766 | P35: 6825.508136 | Q35: 6763.285089 | R35: 113.7151531 | S35: 113.7151531 | T35: 113.7151531 | U35: 113.7151531 | V35: 113.7151531 | W35: 107.7212806 | X35: 8.003876876e-08 | Y35: -1.505402906e-05 | Z35: -7.173860958e-08 | AA35: 6.362570275e-06 | AD35: 890 | AE35: 110.8608596 | AF35: 106.4008702 | AG35: 115.2030718 | AH35: 112.7815731
A36: 28 | C36: 279.9619446 | D36: 825.7545529 | E36: 796.2321817 | F36: 742.2507634 | G36: 771.7731346 | H36: 0.1046848452 | I36: 0.09956154678 | J36: 0.4652255139 | K36: 0.5191662203 | L36: 10219.74286 | M36: 10281.25466 | N36: 10211.1603 | O36: 6766 | P36: 6825.508136 | Q36: 6763.285089 | R36: 113.7151531 | S36: 113.7151531 | T36: 113.7151531 | U36: 113.7151531 | V36: 113.7151531 | W36: 107.7212806 | X36: 3.785818221e-08 | Y36: -7.222202839e-06 | Z36: -3.39171012e-08 | AA36: 3.049884981e-06 | AD36: 900 | AE36: 111.0921327 | AF36: 106.3077927 | AG36: 115.4381801 | AH36: 112.6829139
A37: 29 | C37: 289.9717102 | D37: 825.7545529 | E37: 796.2321817 | F37: 742.2507634 | G37: 771.7731346 | H37: 0.1046848452 | I37: 0.09956154678 | J37: 0.4652255139 | K37: 0.5191662203 | L37: 10219.74286 | M37: 10281.25466 | N37: 10211.1603 | O37: 6766 | P37: 6825.508136 | Q37: 6763.285089 | R37: 113.7151531 | S37: 113.7151531 | T37: 113.7151531 | U37: 113.7151531 | V37: 113.7151531 | W37: 107.7212806 | X37: 1.742915228e-08 | Y37: -3.464097972e-06 | Z37: -1.559879646e-08 | AA37: 1.457010512e-06
A38: 30 | C38: 299.9814758 | D38: 825.7545529 | E38: 796.2321817 | F38: 742.2507634 | G38: 771.7731346 | H38: 0.1046848452 | I38: 0.09956154678 | J38: 0.4652255139 | K38: 0.5191662203 | L38: 10219.74286 | M38: 10281.25466 | N38: 10211.1603 | O38: 6766 | P38: 6825.508136 | Q38: 6763.285089 | R38: 113.7151531 | S38: 113.7151531 | T38: 113.7151531 | U38: 113.7151531 | V38: 113.7151531 | W38: 107.7212806 | X38: 1.059316521e-08 | Y38: -1.661523129e-06 | Z38: -9.504592771e-09 | AA38: 6.980262697e-07
C39: 300.0014954 | D39: 825.7545529 | E39: 796.2321817 | F39: 742.2507634 | G39: 771.7731346 | H39: 0.1046848452 | I39: 0.09956154678 | J39: 0.4652255139 | K39: 0.5191662203 | L39: 10219.74286 | M39: 10281.25466 | N39: 10211.1603 | O39: 6766 | P39: 6825.508136 | Q39: 6763.285089 | R39: 113.7151531 | S39: 113.7151531 | T39: 113.7151531 | U39: 113.7151531 | V39: 113.7151531 | W39: 107.7212806 | X39: 8.627214112e-09 | Y39: -1.657303073e-06 | Z39: -7.72385025e-09 | AA39: 6.937480066e-07

Sheet GPE
G3: General Equilibrium Prices, $/physical unit
K5: Experimenters are invited to change
K6: any data set in red type that
K7: appears within the marquee.
C8: -0.2886111448 | E8: =E24/E$18 -> 0 | F8: 0 | G8: 0 | H8: 0
C9: r | D9: R | E9: 0 | F9: 1 | G9: 2 | H9: L
C10: =-E24 -> 0 | D10: 0 | E10: =E26/E$18 -> 104588.8261 | F10: =-F8-SUM(F11:F13) -> -100 | G10: =-G8-SUM(G11:G13) -> -750 | H10: =-H8-SUM(H11:H13) -> -8766
C11: =F26-E27 -> -8035.153798 | D11: 1 | E11: =E27/E$18 -> -40175.76899 | F11: 50 | G11: 150 | H11: 1000 | N11: =L18*F11+F10 -> -45 | O11: =L18*G11 -> 165 | Q11: =-L18*H11*H18 -> -22000
C12: =G26-E28 -> -7344.632768 | D12: 2 | E12: =E28/E$18 -> -36723.16384 | F12: 30 | G12: 250 | H12: 1000 | N12: =L18*F12 -> 33 | O12: =L18*G12+G10 -> -475 | Q12: =-L18*H12*H18 -> -22000
C13: =H26-E29 -> 15379.78657 | D13: L | E13: =E29/E$18 -> -27689.89328 | F13: 20 | G13: 350 | H13: 6766 | N13: =F13+L15*(F11+F12) -> 12 | O13: =G13+L15*(G11+G12) -> 310 | Q13: =H18*(-H10-H13-L15*(H11+H12)) -> 44000
L14: n
L15: =-C18 -> -0.1 | N15: =N11*N11+N12*N12+N13*N13 -> 3258 | O15: =N11*O11+N12*O12+N13*O13 -> -19380 | Q15: =N11*Q11+N12*Q12+N13*Q13 -> 792000
N16: =O15 -> -19380 | O16: =O11*O11+O12*O12+O13*O13 -> 348950 | Q16: =O11*Q11+O12*Q12+O13*Q13 -> 20460000
E17: 0 | F17: 1 | G17: 2 | H17: L | L17: 1 - n
C18: 0.1 | D18: P | E18: 2 | F18: =N18/Q18 -> 883.8669178 | G18: =O18/Q18 -> 107.7212806 | H18: 20 | L18: =1-L15 -> 1.1 | N18: =Q15*O16-Q16*O15 -> 672883200000 | O18: =N15*Q16-N16*Q15 -> 8.200764e+10 | Q18: =N15*O16-N16*O15 -> 761294700
C19: Interest Rate | E19: Price of | H19: Wage
E20: Value, $/G | H20: $/hour
E24: =-SUM(F24:H24) -> 0 | F24: =F$18*F8 -> 0 | G24: =G$18*G8 -> 0 | H24: =H$18*H8 -> 0
D25: PR | E25: 0 | F25: 1 | G25: 2 | H25: L
D26: 0 | E26: =-SUM(F26:H26) -> 209177.6522 | F26: =-F24-SUM(F27:F29) -> -88386.69178 | G26: =-G24-SUM(G27:G29) -> -80790.96045 | H26: =-H24-SUM(H27:H29) -> -40000
B27: % return > | C27: =C11/E27 -> 0.1 | D27: 1 | E27: =-SUM(F27:H27) -> -80351.53798 | F27: =F$18*F11 -> 44193.34589 | G27: 16158.19209 | H27: 20000
B28: on asset | C28: =C12/E28 -> 0.1 | D28: 2 | E28: =-SUM(F28:H28) -> -73446.32768 | F28: 26516.00753 | G28: 26930.32015 | H28: 20000
B29: turnover | D29: L | E29: =-SUM(F29:H29) -> -55379.78657 | F29: =F$18*F13 -> 17677.33836 | G29: =G$18*G13 -> 37702.44821 | H29: 0

Sheet Utility
G3: Sectors' Production and Utility Tradeoffs, physical units/year
L5: Sector 1:
N7: p | O7: pq
L8: x > | M8: =-F12 -> 100 | N8: =F19 -> 883.8669178 | O8: =M8*N8 -> 88386.69178 | P8: =O8-O9-O10-O11 -> 8035.153798
L9: Q1 > | M9: =F13 -> 50 | N9: =F19 -> 883.8669178 | O9: =M9*N9 -> 44193.34589 | P9: =(O8)*(-O9)+(O8-O9)*(-O10-O11)+(-O10)*(-O11) -> -5180891290 | Q9: =P9/P8/3 -> -214926.0371 | R9: a
F10: =GPE!F8 -> 0 | G10: =GPE!G8 -> 0 | H10: =GPE!H8 -> 0 | L10: Q2 > | M10: =G13 -> 150 | N10: =G19 -> 107.7212806 | O10: =M10*N10 -> 16158.19209 | P10: =(O8-O9)*(-O10)*(-O11)+(-O10-O11)*(O8)*(-O9) -> 1.555193372e+14 | Q10: =P10/P8/3 -> 6451622506 | R10: b
D11: Q | E11: 0 | F11: 1 | G11: 2 | H11: L | L11: QL > | M11: =H13 -> 1000 | N11: =H19 -> 20 | O11: =M11*N11 -> 20000 | P11: =(O8)*(-O9)*(-O10)*(-O11) -> -1.262311459e+18 | Q11: =P11/P8/2 -> -7.854930292e+13 | R11: c
D12: 0 | E12: =GPE!E10 -> 104588.8261 | F12: =GPE!F10 -> -100 | G12: =GPE!G10 -> -750 | H12: =GPE!H10 -> -8766 | N12: ^ P
D13: 1 | F13: =GPE!F11 -> 50 | G13: =GPE!G11 -> 150 | H13: =GPE!H11 -> 1000 | O13: pu | P13: z
D14: 2 | F14: =GPE!F12 -> 30 | G14: =GPE!G12 -> 250 | H14: =GPE!H12 -> 1000 | L14: Z < | M14: =O14/N8 -> 794.2843664 | O14: =P$14+O8 -> 702041.6748 | P14: =-Q9+Q16+Q17 -> 613654.983 | Q14: =-Q9*Q9+Q10 -> -3.974157891e+10 | R14: B | S14: =Q14^3+Q15^2 -> 6.560854017e+28
D15: L | F15: =GPE!F13 -> 20 | G15: =GPE!G13 -> 350 | H15: =GPE!H13 -> 6766 | L15: U1 < | M15: =O15/N9 -> 644.2843664 | O15: =P$14-O9 -> 569461.6371 | Q15: =Q9^3-3*Q9*Q10/2+Q11 -> -7926738537434964 | R15: C | S15: =SQRT(ABS(S14)) -> 2.561416408e+14
L16: U2 < | M16: =O16/N10 -> 5546.692237 | O16: =P$14-O10 -> 597496.7909 | Q16: =IF(S16>0,S16^(1/3),-((-S16)^(1/3))) -> 201512.5339 | R16: S1 | S16: =(-Q15+S15) -> 8182880178270446
L17: UL < | M17: =O17/N11 -> 29682.74915 | O17: =P$14-O11 -> 593654.983 | Q17: =IF(S17>0,S17^(1/3),-((-S17)^(1/3))) -> 197216.4121 | R17: S2 | S17: =(-Q15-S15) -> 7670596896599482
E18: 0 | F18: 1 | G18: 2 | H18: L
D19: P | E19: =GPE!E18 -> 2 | F19: =GPE!F18 -> 883.8669178 | G19: =GPE!G18 -> 107.7212806 | H19: =GPE!H18 -> 20
L22: Sector 2:
N23: p | O23: pq
L24: x > | M24: =-G12 -> 750 | N24: =G19 -> 107.7212806 | O24: =M24*N24 -> 80790.96045 | P24: =O24-O25-O26-O27 -> 7344.632768
L25: Q1 > | M25: =F14 -> 30 | N25: =F19 -> 883.8669178 | O25: =M25*N25 -> 26516.00753 | P25: =(O24)*(-O25)+(O24-O25)*(-O26-O27)+(-O26)*(-O27) -> -4150788230 | Q25: =P25/P24/3 -> -188381.9273 | R25: a
L26: Q2 > | M26: =G14 -> 250 | N26: =G19 -> 107.7212806 | O26: =M26*N26 -> 26930.32015 | P26: =(O24-O25)*(-O26)*(-O27)+(-O26-O27)*(O24)*(-O25) -> 1.297694899e+14 | Q26: =P26/P24/3 -> 5889538388 | R26: b
C27: z | D27: U | E27: 0 | F27: 1 | G27: 2 | H27: L | L27: QL > | M27: =H14 -> 1000 | N27: =H19 -> 20 | O27: =M27*N27 -> 20000 | P27: =(O24)*(-O25)*(-O26)*(-O27) -> -1.153831568e+18 | Q27: =P27/P24/2 -> -7.854930292e+13 | R27: c
C28: 0 | D28: 0 | E28: =-E12+((O8-O14)+(O24-O30)-(O41-O45))/E19 -> -643139.1648 | F28: =M14 -> 794.2843664 | G28: =M30 -> 5693.503722 | H28: =-H12 -> 8766 | N28: ^ P
C29: =P14 -> 613654.983 | D29: 1 | F29: =M15 -> 644.2843664 | G29: =M16 -> 5546.692237 | H29: =M17 -> 29682.74915 | O29: pu | P29: z
C30: =P30 -> 532520.5516 | D30: 2 | F30: =M31 -> 572.4895161 | G30: =M32 -> 4693.503722 | H30: =M33 -> 25626.02758 | L30: Z < | M30: =O30/N24 -> 5693.503722 | O30: =$P$30+O24 -> 613311.5121 | P30: =-Q25+Q32+Q33 -> 532520.5516 | Q30: =-Q25*Q25+Q26 -> -2.959821216e+10 | R30: B | S30: =Q30^3+Q31^2 -> 7.604104008e+28
C31: =P45 -> 69074.85729 | D31: L | F31: =M46 -> 58.15074408 | G31: =M47 -> 291.2368745 | H31: =M45 -> -10219.74286 | L31: U1 < | M31: =O31/N25 -> 572.4895161 | O31: =$P$30-O25 -> 506004.5441 | Q31: =Q25^3-3*Q25*Q26/2+Q27 -> -5099576259480375 | R31: C | S31: =SQRT(ABS(S30)) -> 2.75755399e+14
L32: U2 < | M32: =O32/N26 -> 4693.503722 | O32: =$P$30-O26 -> 505590.2315 | Q32: =IF(S32>0,S32^(1/3),-((-S32)^(1/3))) -> 175173.5058 | R32: S1 | S32: =(-Q31+S31) -> 5375331658481722
L33: UL < | M33: =O33/N27 -> 25626.02758 | O33: =$P$30-O27 -> 512520.5516 | Q33: =IF(S33>0,S33^(1/3),-((-S33)^(1/3))) -> 168965.1184 | R33: S2 | S33: =(-Q31-S31) -> 4823820860479028
L38: Sector L:
M40: Leisure | N40: p | O40: pq
L41: x > | M41: =-H15 -> -6766 | N41: =-H19 -> -20 | O41: =M41*N41 -> 135320 | Q41: =O41-O42-O43 -> 79940.21343 | R41: a
L42: Q1 > | M42: =F15 -> 20 | N42: =F19 -> 883.8669178 | O42: =M42*N42 -> 17677.33836 | Q42: =-O41*O42-O41*O43+O42*O43 -> -6827513784 | R42: b
L43: Q2 > | M43: =G15 -> 350 | N43: =G19 -> 107.7212806 | O43: =M43*N43 -> 37702.44821 | Q43: =O41*O42*O43 -> 9.018792933e+13 | R43: c
N44: ^ P | O44: pu | P44: z
L45: Z < | M45: =O45/N41 -> -10219.74286 | O45: =P$45+O41 -> 204394.8573 | P45: =(-Q42+SQRT(Q42^2-4*Q41*Q43))/(2*Q41) -> 69074.85729
L46: U1 < | M46: =O46/N42 -> 58.15074408 | O46: =P$45-O42 -> 51397.51893
L47: U2 < | M47: =O47/N43 -> 291.2368745 | O47: =P$45-O43 -> 31372.40908

Sheet IState
G4: Commodities' Turnover Fractions, dimensionless/year
C9: =(1-C13)^-E9 -> 0.5131581182 | E9: 7 | G9: < Investment Term
C10: NPV
C12: n | E12: (1-1/NPV)/T | G12: V0
C13: =GPE!L15 -> -0.1 | E13: =(1-1/C9)/E9 -> -0.1355310143 | G13: 1 | H13: 0.1 | I13: =1/3 -> 0.3333333333 | J13: =1 -> 1 | K13: < V
G14: 0 | H14: 1 | I14: 2 | J14: L
G21: =GPE!E8 -> 0 | H21: =GPE!F8 -> 0 | I21: =GPE!G8 -> 0 | J21: =GPE!H8 -> 0
C22: e - | E22: e + | F22: E | G22: 0 | H22: 1 | I22: 2 | J22: L
B23: 0 | F23: 0 | G23: =GPE!E10 -> 104588.8261 | H23: =GPE!F10 -> -100 | I23: =GPE!G10 -> -750 | J23: =GPE!H10 -> -8766
B24: 1 | C24: =GPE!C11 -> -8035.153798 | F24: 1 | G24: =GPE!E11 -> -40175.76899 | H24: =GPE!F11 -> 50 | I24: =GPE!G11 -> 150 | J24: =GPE!H11 -> 1000
B25: 2 | C25: =GPE!C12 -> -7344.632768 | F25: 2 | G25: =GPE!E12 -> -36723.16384 | H25: =GPE!F12 -> 30 | I25: =GPE!G12 -> 250 | J25: =GPE!H12 -> 1000
B26: L | C26: =GPE!A13 -> 0 | E26: =GPE!C13 -> 15379.78657 | F26: L | G26: =GPE!E13 -> -27689.89328 | H26: =GPE!F13 -> 20 | I26: =GPE!G13 -> 350 | J26: =GPE!H13 -> 6766
C31: 0 | E31: 0 | G31: =G21/3 -> 0 | H31: =H21/H$13/3 -> 0 | I31: =I21/I$13/3 -> 0 | J31: =J21/J$13/3 -> 0
F32: A | G32: 0 | H32: 1 | I32: 2 | J32: L
B33: 0 | C33: 0 | E33: 0 | F33: 0 | G33: =G23/3 -> 34862.94204 | H33: =H23/H$13/3 -> -333.3333333 | I33: -750 | J33: -2922
B34: 1 | C34: =C24/C13 -> 80351.53798 | F34: 1 | G34: =G24/3 -> -13391.923 | H34: 166.6666667 | I34: 150 | J34: 333.3333333
B35: 2 | C35: =C25/C13 -> 73446.32768 | F35: 2 | G35: =G25/3 -> -12241.05461 | H35: 100 | I35: 250 | J35: 333.3333333
B36: L | E36: =E26/E13/3 -> -37825.99539 | F36: L | G36: =G26/3 -> -9229.964428 | H36: 66.66666667 | I36: 350 | J36: 2255.333333
E39: 0 | G39: =G31 -> 0 | H39: =H31 -> 0 | I39: =I31 -> 0 | J39: =J31 -> 0
F40: B | G40: 0 | H40: 1 | I40: 2 | J40: L
E41: 0 | F41: 0 | G41: =G33 -> 34862.94204 | H41: =H33 -> -333.3333333 | I41: -750 | J41: -2922
F42: 1 | G42: =G34 -> -13391.923 | H42: 166.6666667 | I42: 150 | J42: 333.3333333
C43: System State | F43: 2 | G43: =G35 -> -12241.05461 | H43: 100 | I43: 250 | J43: 333.3333333
C44: at time = 0 > | E44: =E36 -> -37825.99539 | F44: L | G44: =G36 -> -9229.964428 | H44: 66.66666667 | I44: 350 | J44: 2255.333333
E47: 0 | G47: =G39 -> 0 | H47: =H39 -> 0 | I47: =I39 -> 0 | J47: =J39 -> 0
F48: C | G48: 0 | H48: 1 | I48: 2 | J48: L
E49: 0 | F49: 0 | G49: =G41 -> 34862.94204 | H49: =H41 -> -333.3333333 | I49: -750 | J49: -2922
F50: 1 | G50: =G42 -> -13391.923 | H50: 166.6666667 | I50: 150 | J50: 333.3333333
F51: 2 | G51: =G43 -> -12241.05461 | H51: 100 | I51: 250 | J51: 333.3333333
E52: =E44 -> -37825.99539 | F52: L | G52: =G44 -> -9229.964428 | H52: 66.66666667 | I52: 350 | J52: 2255.333333
J55: =Utility!H31/J13 -> -10219.74286

Sheet Module1 (hidden)

Sheet Module2 (hidden)
